Workbook

Sheet Options (hidden)
A1: Параметры программы
A2: Внимание! Измение этих параметров вручную приведет к неправильной работе ряда формул и макросов
A4: Сборка дистрибутива выполнена? | B4: FALSE
A5: Версия программы | B5: 6.04
A6: Дата сборки | B6: 2010-01-21
A7: Это демоверсия? | B7: FALSE
A8: Это пробная версия? | B8: FALSE | C8: 2008-10-15
A9: Показывать диалог "О программе"? | B9: FALSE
A10: Это версия СУММ? | B10: TRUE
A11: Это версия Строительство? | B11: FALSE
A12: Метка ESTATE (всегда должна быть равна 0) | B12: 0
A14: Число строк из проекта на листе Портфель | B14: 122
A16: СБОРКА ДИСТРИБУТИВА
A17: Сейчас будет собрана модификация: | B17: =IF(B21=1,"Альт-Инвест ","ALT-invest ")&IF(B18=1,IF(B21=1,"Сумм ","Summ "),"")&IF(B19=1,IF(B21=1,"Строительство ","Estate "),"")&IF(B20=1,IF(B21=1,"Демо ","Demo "),"")&IF(B20=2,IF(B21=1,"Пробная ","Trial "),"")&IF(B21=1,"(русская)","(english)") -> Альт-Инвест Сумм (русская)
A18: Сумм? | B18: 1 | C18: 0 - нет, 1 - да
A19: Строительство? | B19: 0 | C19: 0 - нет, 1 - да
A20: Демо или пробная версия? | B20: 0 | C20: 0 - рабочая, 1 - демо, 2 - пробная
A21: Базовый язык интерфейса? | B21: 1 | C21: 1 - русский, 2 - английский

Sheet ПРОЧИТАТЬ - Описание
C1: Описание
B3: Предоставляемая в Минфин России/АНО ИТР финансовая модель проекта должна соответствовать требованиям к архитектуре, содержанию и оформлению финансовых моделей. Листы файла являются примерами оформления отдельных блоков финансовой модели.
B4: Предоставляемая в Минфин России/АНО ИТР финансовая модель должна содержать полный набор расчетных и итоговых листов, связанных посредством расчетных формул, построенных с учетом специфики отрасли и конкретного проекта, основные графики, ссылки на источники и прочую необходимую для расчетов и анализа информацию.
C5: Цвета листов:
C6: Результаты | D6: Подтягиваются результаты для сведения Минфина (по умолчанию не меняются).
C8: Информация | D8: Представляется общая информация по проекту, переключатели сценариев мер поддержки и проч.
C10: ОПУ | D10: Ключевые сводные листы. Детальная информация и расчеты подтягиваются с детальных листов.
C12: Лист А | D12: Листы для блоков детальной информации и расчетов.
D13: Исходные параметры (Исходная информация или Inputs. См. листы ПРИМЕР).
D14: Детальные блоки расчетов с учетом специфики проекта / бизнеса: выручка, себестоимость и иные расходы, капитальные затраты и амортизация и проч.
C17: Примеры | D17: Примеры представления листов, инструкция по формированию переключателей, примеры анализа чувствительности и сценариев, упрощения формул.
C19: Используемые форматы ячеек на листах далее (для информации):
C20: 43124.62604 | D20: - ячейки, предназначенные для заполнения с помощью активных ссылок (связи с расчетными листами модели)
C21: =C20*2 -> 86249.25208 | D21: - ячейки с формулами, заполнять не требуется. Возможны корректировки при необходимости
C32: Возможно добавлять свои расчетные блоки
C33: Сведения, представленные в данной модели, являются конфиденциальными (ограниченного доступа)

Sheet Результаты_1
C2: 1. Оценка коммерческой эффективности проекта
C4: Ключевые финансовые показатели
B6: Структура финансирования капитальных и иных затрат
C8: Затраты \ источники | H8: с НДС / без НДС | I8: Заемные средства | J8: Собственные средства | K8: Итого
C9: ПИР | D9: в валюте (руб) | F9: ='Капитальные затраты'!E26 -> 1604644.8 | H9: тыс. руб. | I9: =F9*49% -> 786275.952 | J9: =F9*51% -> 818368.848 | K9: =SUM(I9:J9) -> 1604644.8
C10: СМР | D10: в валюте (руб) | F10: ='Капитальные затраты'!E27 -> 24932472 | H10: тыс. руб. | I10: =F10*80% -> 19945977.6 | J10: =F10*14% -> 3490546.08 | K10: 23436523.68
C11: Российское оборудование | D11: в валюте (руб) | F11: ='Капитальные затраты'!E28 -> 23436050.4 | H11: тыс. руб. | I11: =F11*80% -> 18748840.32 | J11: =F11*13% -> 3046686.552 | K11: 21795526.87
C12: Импортное оборудование (импорт пересчитан в руб.) | D12: в валюте (руб) | F12: ='Капитальные затраты'!E29 -> 43524093.6 | H12: тыс. руб. | I12: =F12*80% -> 34819274.88 | J12: =F12*13% -> 5658132.168 | K12: 40477407.05
C13: НИОКР | D13: в валюте (руб) | F13: ='Капитальные затраты'!E30 -> 0 | H13: тыс. руб. | K13: 0
C14: Оборотный капитал | D14: в валюте (руб) | F14: ='Капитальные затраты'!I17 -> 0 | H14: тыс. руб. | I14: =F14*80% -> 0 | J14: =F14*20% -> 0 | K14: 0
C15: Иное | D15: в валюте (руб) | F15: ='Капитальные затраты'!E32 -> 0 | H15: тыс. руб. | I15: =F15*80% -> 0 | J15: =F15*20% -> 0 | K15: 0
C16: Финансирование итого | D16: в валюте (руб) | F16: ='Капитальные затраты'!E33 -> 0 | H16: тыс. руб. | I16: =SUM(I9:I15) -> 74300368.75 | J16: =SUM(J9:J15) -> 13013733.65 | K16: =SUM(K9:K15) -> 87314102.4
C17: Итого структура финансирования | H17: % | I17: =IFERROR(I16/$K$16,"н/д") -> 0.8509549627 | J17: =IFERROR(J16/$K$16,"н/д") -> 0.1490450373
B18: *возможно добавление нескольких столбцов при наличии нескольких валют
B20: Сроки реализации
C22: Инвестиционная фаза | D22: 2019 | F22: 2024
C23: Период финансирования ОС (выборка) | D23: 2020 | F23: 2024
C24: Год выхода на прибыльность | D24: 2025
C25: Год выхода на полную мощность | D25: 2024
C27: Периоды строительства инфраструктуры
C28: Инфраструктура в модели проекта
C29: Указать наименование объекта | D29: ОТ | F29: ДО
C30: Указать наименование объекта | D30: ОТ | F30: ДО
C31: Указать наименование объекта | D31: ОТ | F31: ДО
C32: Инфраструктура за периметром проекта
C33: Указать наименование объекта | D33: ОТ | F33: ДО
C34: Указать наименование объекта | D34: ОТ | F34: ДО
C35: Указать наименование объекта | D35: ОТ | F35: ДО
B38: Результаты реализации проекта
F40: База расчета
F41: Для Проекта | G41: Для акционеров
C42: NPV | D42: тыс. руб. | F42: ='Дисконтированные потоки'!E45 -> 173247438.7 | G42: ='Дисконтированные потоки'!E48 -> 114701169.5
C43: в т.ч. Терминальная стоимость | D43: тыс. руб. | F43: ='Дисконтированные потоки'!AJ29 -> 447166048.6 | G43: ='Дисконтированные потоки'!AJ30 -> 355527925.6
C44: IRR | D44: % | F44: ='Дисконтированные потоки'!E51 -> 0.1919846733 | G44: ='Дисконтированные потоки'!E58 -> 0.4803598855
C46: Период окупаемости | D46: лет | F46: ='Дисконтированные потоки'!E67 -> 9.607483956 | G46: ='Дисконтированные потоки'!E74 -> 5.487237964
C47: Дисконтированный период окупаемости | D47: лет | F47: ='Дисконтированные потоки'!E70 -> 10.46133249 | G47: ='Дисконтированные потоки'!E77 -> 5.474309888
C48: Прогнозный период финансовой модели | D48: лет | F48: =AE65-F65 -> 25
C49: Дисконтированный бюджетный эффект (прогнозный период) | D49: тыс. руб. | F49: =F141 -> 58072532.85
C52: Показатели операционной стадии:
C53: DSCR min | D53: =SMALL(F97:AE97,COUNTIF(F97:AE97,0)+1) -> 1.144702375e-15
C54: DSCR срзнач | D54: =AVERAGE(F96:AE96) -> 20.61696036
C55: EBITDA рентабельность max | D55: =MAX(F68:AE68)/MAX(F66:AE66) -> 0.5401160842
C56: EBITDA рентабельность срзнач | D56: =AVERAGE(F68:AE68)/AVERAGE(F66:AE66) -> 0.5749006288
C57: D/EBITDA max | D57: =MAX(F97:AE97) -> 4.616916896
C58: D/EBITDA срзнач | D58: =AVERAGE(F97:AE97) -> 1.541703715
C59: WACC срзнач | D59: ='Дисконтированные потоки'!E24 -> 0.04798613119
C60: Стоимость акционерного капитала (Cost of equity) | D60: ='Дисконтированные потоки'!E16 -> 0.093582
C61: Максимальная загрузка (мощность), % | D61: 0.95
B64: Финансовые результаты
F65: 2019 | G65: 2020 | H65: 2021 | I65: 2022 | J65: 2023 | K65: 2024 | L65: 2025 | M65: 2026 | N65: 2027 | O65: 2028 | P65: 2029 | Q65: 2030 | R65: 2031 | S65: 2032 | T65: 2033 | U65: 2034 | V65: 2035 | W65: 2036 | X65: 2037 | Y65: 2038 | Z65: 2039 | AA65: 2040 | AB65: 2041 | AC65: 2042 | AD65: 2043 | AE65: 2044 | AF65: Итого
C66: Выручка | D66: тыс. руб. | F66: =ОПУ!I36 -> 0 | G66: =ОПУ!J36 -> 0 | H66: =ОПУ!K36 -> 0 | I66: =ОПУ!L36 -> 0 | J66: =ОПУ!M36 -> 0 | K66: =ОПУ!N36 -> 28988201.48 | L66: =ОПУ!O36 -> 29992215.6 | M66: =ОПУ!P36 -> 30970633.78 | N66: =ОПУ!Q36 -> 31938764 | O66: =ОПУ!R36 -> 32916482.01 | P66: =ОПУ!S36 -> 33878403.4 | Q66: =ОПУ!T36 -> 34826688.22 | R66: =ОПУ!U36 -> 35758600.91 | S66: =ОПУ!V36 -> 36671386.49 | T66: =ОПУ!W36 -> 37562283.58 | U66: =ОПУ!X36 -> 38428537.81 | V66: =ОПУ!Y36 -> 39267415.61 | W66: =ОПУ!Z36 -> 40076218.21 | X66: =ОПУ!AA36 -> 40852295.78 | Y66: =ОПУ!AB36 -> 41643402.13 | Z66: =ОПУ!AC36 -> 42449828.28 | AA66: =ОПУ!AD36 -> 43271870.9 | AB66: =ОПУ!AE36 -> 44109832.41 | AC66: =ОПУ!AF36 -> 44964021.08 | AD66: =ОПУ!AG36 -> 45834751.15 | AE66: =ОПУ!AH36 -> 46722342.94 | AF66: =SUM(F66:AE66) -> 801124175.8
C67: Валовая прибыль | D67: тыс. руб. | F67: =ОПУ!I50 -> 0 | G67: =ОПУ!J50 -> 0 | H67: =ОПУ!K50 -> 0 | I67: =ОПУ!L50 -> 0 | J67: =ОПУ!M50 -> 0 | K67: =ОПУ!N50 -> 18864456.29 | L67: =ОПУ!O50 -> 19496906.05 | M67: =ОПУ!P50 -> 20089220.76 | N67: =ОПУ!Q50 -> 20656126.84 | O67: =ОПУ!R50 -> 21217906.05 | P67: =ОПУ!S50 -> 21747534.12 | Q67: =ОПУ!T50 -> 22245506.09 | R67: =ОПУ!U50 -> 22713460.24 | S67: =ОПУ!V50 -> 23142879.84 | T67: =ОПУ!W50 -> 23532289.3 | U67: =ОПУ!X50 -> 23877158.15 | V67: =ОПУ!Y50 -> 24173956.88 | W67: =ОПУ!Z50 -> 24418148.14 | X67: =ОПУ!AA50 -> 24612286.29 | Y67: =ОПУ!AB50 -> 24798175.62 | Z67: =ОПУ!AC50 -> 24998449.07 | AA67: =ОПУ!AD50 -> 25165888.99 | AB67: =ОПУ!AE50 -> 25323063.68 | AC67: =ОПУ!AF50 -> 25469234.05 | AD67: =ОПУ!AG50 -> 25603625.1 | AE67: =ОПУ!AH50 -> 25725424.3 | AF67: 487871695.9
C68: EBITDA | D68: тыс. руб. | F68: =ОПУ!I60 -> 0 | G68: =ОПУ!J60 -> 0 | H68: =ОПУ!K60 -> 0 | I68: =ОПУ!L60 -> 0 | J68: =ОПУ!M60 -> 0 | K68: =ОПУ!N60 -> 16823178.73 | L68: =ОПУ!O60 -> 17551204.57 | M68: =ОПУ!P60 -> 18176942.54 | N68: =ОПУ!Q60 -> 18836264.02 | O68: =ОПУ!R60 -> 19489440.49 | P68: =ОПУ!S60 -> 20034104.54 | Q68: =ОПУ!T60 -> 20595206.24 | R68: =ОПУ!U60 -> 21143411.46 | S68: =ОПУ!V60 -> 21653487.05 | T68: =ОПУ!W60 -> 22123957.46 | U68: =ОПУ!X60 -> 22550292.19 | V68: =ОПУ!Y60 -> 22928961.74 | W68: =ОПУ!Z60 -> 23255428.77 | X68: =ОПУ!AA60 -> 23532247.62 | Y68: =ОПУ!AB60 -> 23801222.6 | Z68: =ОПУ!AC60 -> 24084986.64 | AA68: =ОПУ!AD60 -> 24336322.08 | AB68: =ОПУ!AE60 -> 24577797.24 | AC68: =ОПУ!AF60 -> 24808673.03 | AD68: =ОПУ!AG60 -> 25028174.42 | AE68: =ОПУ!AH60 -> 25235488.91 | AF68: 460566792.4
C69: EBIT | D69: тыс. руб. | F69: =ОПУ!I65 -> 0 | G69: =ОПУ!J65 -> 0 | H69: =ОПУ!K65 -> 0 | I69: =ОПУ!L65 -> 0 | J69: =ОПУ!M65 -> 0 | K69: =ОПУ!N65 -> 12868657.86 | L69: =ОПУ!O65 -> 13628867 | M69: =ОПУ!P65 -> 14158917.17 | N69: =ОПУ!Q65 -> 14843525.51 | O69: =ОПУ!R65 -> 15521988.84 | P69: =ОПУ!S65 -> 15910621.45 | Q69: =ОПУ!T65 -> 16421436.77 | R69: =ОПУ!U65 -> 16959584.71 | S69: =ОПУ!V65 -> 17459603.03 | T69: =ОПУ!W65 -> 17920016.16 | U69: =ОПУ!X65 -> 18336293.61 | V69: =ОПУ!Y65 -> 18704905.89 | W69: =ОПУ!Z65 -> 19021315.64 | X69: =ОПУ!AA65 -> 19288077.21 | Y69: =ОПУ!AB65 -> 19546994.92 | Z69: =ОПУ!AC65 -> 19951258.13 | AA69: =ОПУ!AD65 -> 20192844.21 | AB69: =ОПУ!AE65 -> 20424570.01 | AC69: =ОПУ!AF65 -> 20645696.43 | AD69: =ОПУ!AG65 -> 20855448.47 | AE69: =ОПУ!AH65 -> 21053013.6 | AF69: 373713636.6
C70: EBT | D70: тыс. руб. | F70: =ОПУ!I71 -> 0 | G70: =ОПУ!J71 -> 0 | H70: =ОПУ!K71 -> 0 | I70: =ОПУ!L71 -> 0 | J70: =ОПУ!M71 -> 0 | K70: =ОПУ!N71 -> 8891414.568 | L70: =ОПУ!O71 -> 9886726.385 | M70: =ОПУ!P71 -> 10533165.09 | N70: =ОПУ!Q71 -> 11446964.88 | O70: =ОПУ!R71 -> 12352005.66 | P70: =ОПУ!S71 -> 12829100.67 | Q70: =ОПУ!T71 -> 13518066.75 | R70: =ОПУ!U71 -> 14265468.73 | S70: =ОПУ!V71 -> 14975780.75 | T70: =ОПУ!W71 -> 15647527.25 | U70: =ОПУ!X71 -> 16276177.73 | V70: =ОПУ!Y71 -> 16858202.71 | W70: =ОПУ!Z71 -> 17389064.82 | X70: =ОПУ!AA71 -> 17871318.42 | Y70: =ОПУ!AB71 -> 18346767.81 | Z70: =ОПУ!AC71 -> 18968602.37 | AA70: =ОПУ!AD71 -> 19428799.47 | AB70: =ОПУ!AE71 -> 19880175.95 | AC70: =ОПУ!AF71 -> 20321992.72 | AD70: =ОПУ!AG71 -> 20753474.76 | AE70: =ОПУ!AH71 -> 21053013.6 | AF70: 331493811.1
C71: Чистая прибыль | D71: тыс. руб. | F71: =ОПУ!I80 -> 0 | G71: =ОПУ!J80 -> 0 | H71: =ОПУ!K80 -> 0 | I71: =ОПУ!L80 -> 0 | J71: =ОПУ!M80 -> 0 | K71: =ОПУ!N80 -> 7113131.655 | L71: =ОПУ!O80 -> 7909381.108 | M71: =ОПУ!P80 -> 8426532.071 | N71: =ОПУ!Q80 -> 9157571.903 | O71: =ОПУ!R80 -> 9881604.526 | P71: =ОПУ!S80 -> 10263280.54 | Q71: =ОПУ!T80 -> 10814453.4 | R71: =ОПУ!U80 -> 11412374.98 | S71: =ОПУ!V80 -> 11980624.6 | T71: =ОПУ!W80 -> 12518021.8 | U71: =ОПУ!X80 -> 13020942.19 | V71: =ОПУ!Y80 -> 13486562.17 | W71: =ОПУ!Z80 -> 13911251.86 | X71: =ОПУ!AA80 -> 14297054.73 | Y71: =ОПУ!AB80 -> 14677414.25 | Z71: =ОПУ!AC80 -> 15174881.9 | AA71: =ОПУ!AD80 -> 15543039.57 | AB71: =ОПУ!AE80 -> 15904140.76 | AC71: =ОПУ!AF80 -> 16257594.17 | AD71: =ОПУ!AG80 -> 16602779.81 | AE71: =ОПУ!AH80 -> 16842410.88 | AF71: 265195048.9
C73: Балансовые показатели
C74: Активы итого | D74: тыс. руб. | F74: =Баланс!I23 -> 594099.2 | G74: =Баланс!J23 -> 10518976 | H74: =Баланс!K23 -> 36864520 | I74: =Баланс!L23 -> 63034368 | J74: =Баланс!M23 -> 96288100 | K74: =Баланс!N23 -> 134667422.9 | L74: =Баланс!O23 -> 123787070.9 | M74: =Баланс!P23 -> 131874401.7 | N74: =Баланс!Q23 -> 138074217.2 | O74: =Баланс!R23 -> 145104176.3 | P74: =Баланс!S23 -> 156013908.7 | Q74: =Баланс!T23 -> 165360130.6 | R74: =Баланс!U23 -> 174596218.5 | S74: =Баланс!V23 -> 184448515.9 | T74: =Баланс!W23 -> 194888861.6 | U74: =Баланс!X23 -> 205885578.1 | V74: =Баланс!Y23 -> 217404276 | W74: =Баланс!Z23 -> 229407052.5 | X74: =Баланс!AA23 -> 241858169.6 | Y74: =Баланс!AB23 -> 254755458.3 | Z74: =Баланс!AC23 -> 268212118.8 | AA74: =Баланс!AD23 -> 282109969.8 | AB74: =Баланс!AE23 -> 296445638.6 | AC74: =Баланс!AF23 -> 311215308 | AD74: =Баланс!AG23 -> 326414694.3 | AE74: =Баланс!AH23 -> 341942386.4
C75: Долгосрочные кредиты | D75: тыс. руб. | F75: =Баланс!I33 -> 0 | G75: =Баланс!J33 -> 4890076.8 | H75: =Баланс!K33 -> 22178624 | I75: =Баланс!L33 -> 48043859.2 | J75: =Баланс!M33 -> 80573960 | K75: =Баланс!N33 -> 77671218.11 | L75: =Баланс!O33 -> 72984412.8 | M75: =Баланс!P33 -> 70611305.46 | N75: =Баланс!Q33 -> 66039457.28 | O75: =Баланс!R33 -> 61519889.35 | P75: =Баланс!S33 -> 59676713.6 | Q75: =Баланс!T33 -> 56089872.8 | R75: =Баланс!U33 -> 51900026.88 | S75: =Баланс!V33 -> 47689387.68 | T75: =Баланс!W33 -> 43457955.2 | U75: =Баланс!X33 -> 39205729.44 | V75: =Баланс!Y33 -> 34932710.4 | W75: =Баланс!Z33 -> 30638898.08 | X75: =Баланс!AA33 -> 26324292.48 | Y75: =Баланс!AB33 -> 21988893.6 | Z75: =Баланс!AC33 -> 17632701.44 | AA75: =Баланс!AD33 -> 13255716 | AB75: =Баланс!AE33 -> 8857937.28 | AC75: =Баланс!AF33 -> 4439365.28 | AD75: =Баланс!AG33 -> 2.86498107e-08 | AE75: =Баланс!AH33 -> 0
C77: Финансирование
C78: Участие государства в создании инфраструктурных условий | D78: тыс. руб. | F78: =ДДС!I34 -> 0 | G78: =ДДС!J34 -> 0 | H78: =ДДС!K34 -> 0 | I78: =ДДС!L34 -> 0 | J78: =ДДС!M34 -> 0 | K78: =ДДС!N34 -> 0 | L78: =ДДС!O34 -> 0 | M78: =ДДС!P34 -> 0 | N78: =ДДС!Q34 -> 0 | O78: =ДДС!R34 -> 0 | P78: =ДДС!S34 -> 0 | Q78: =ДДС!T34 -> 0 | R78: =ДДС!U34 -> 0 | S78: =ДДС!V34 -> 0 | T78: =ДДС!W34 -> 0 | U78: =ДДС!X34 -> 0 | V78: =ДДС!Y34 -> 0 | W78: =ДДС!Z34 -> 0 | X78: =ДДС!AA34 -> 0 | Y78: =ДДС!AB34 -> 0 | Z78: =ДДС!AC34 -> 0 | AA78: =ДДС!AD34 -> 0 | AB78: =ДДС!AE34 -> 0 | AC78: =ДДС!AF34 -> 0 | AD78: =ДДС!AG34 -> 0 | AE78: =ДДС!AH34 -> 0 | AF78: =SUM(F78:AE78) -> 0
C79: Компенсация части капитальных затрат на реализацию проекта | D79: тыс. руб. | F79: =ДДС!I35 -> 0 | G79: =ДДС!J35 -> 0 | H79: =ДДС!K35 -> 0 | I79: =ДДС!L35 -> 0 | J79: =ДДС!M35 -> 0 | K79: =ДДС!N35 -> 0 | L79: =ДДС!O35 -> 0 | M79: =ДДС!P35 -> 0 | N79: =ДДС!Q35 -> 0 | O79: =ДДС!R35 -> 0 | P79: =ДДС!S35 -> 0 | Q79: =ДДС!T35 -> 0 | R79: =ДДС!U35 -> 0 | S79: =ДДС!V35 -> 0 | T79: =ДДС!W35 -> 0 | U79: =ДДС!X35 -> 0 | V79: =ДДС!Y35 -> 0 | W79: =ДДС!Z35 -> 0 | X79: =ДДС!AA35 -> 0 | Y79: =ДДС!AB35 -> 0 | Z79: =ДДС!AC35 -> 0 | AA79: =ДДС!AD35 -> 0 | AB79: =ДДС!AE35 -> 0 | AC79: =ДДС!AF35 -> 0 | AD79: =ДДС!AG35 -> 0 | AE79: =ДДС!AH35 -> 0 | AF79: =SUM(F79:AE79) -> 0
C80: Собственный капитал | D80: тыс. руб. | F80: =Баланс!I38 -> 594099.2 | G80: =Баланс!J38 -> 5628899.2 | H80: =Баланс!K38 -> 14685896 | I80: =Баланс!L38 -> 14990508.8 | J80: =Баланс!M38 -> 15714140 | K80: =Баланс!N38 -> 56428127.26 | L80: =Баланс!O38 -> 50005026.88 | M80: =Баланс!P38 -> 59731903.21 | N80: =Баланс!Q38 -> 70245977.5 | O80: =Баланс!R38 -> 81542454.73 | P80: =Баланс!S38 -> 93275160.73 | Q80: =Баланс!T38 -> 105619553.2 | R80: =Баланс!U38 -> 118626226.8 | S80: =Баланс!V38 -> 132268097.5 | T80: =Баланс!W38 -> 146517004.3 | U80: =Баланс!X38 -> 161341269.6 | V80: =Баланс!Y38 -> 176706504 | W80: =Баланс!Z38 -> 192574804.8 | X80: =Баланс!AA38 -> 208910433.8 | Y80: =Баланс!AB38 -> 225711222.3 | Z80: =Баланс!AC38 -> 242967127.6 | AA80: =Баланс!AD38 -> 260682629.8 | AB80: =Баланс!AE38 -> 278854356.2 | AC80: =Баланс!AF38 -> 297478489.6 | AD80: =Баланс!AG38 -> 316550746.3 | AE80: =Баланс!AH38 -> 335969715.2 | AF80: =SUM(F80:AE80) -> 3663620375
C81: Привлечение кредитов | D81: тыс. руб. | F81: =ДДС!I39 -> 0 | G81: =ДДС!J39 -> 4890076.8 | H81: =ДДС!K39 -> 17169920 | I81: =ДДС!L39 -> 25923600 | J81: =ДДС!M39 -> 31452600 | K81: =ДДС!N39 -> 0 | L81: =ДДС!O39 -> 0 | M81: =ДДС!P39 -> 0 | N81: =ДДС!Q39 -> 0 | O81: =ДДС!R39 -> 0 | P81: =ДДС!S39 -> 0 | Q81: =ДДС!T39 -> 0 | R81: =ДДС!U39 -> 0 | S81: =ДДС!V39 -> 0 | T81: =ДДС!W39 -> 0 | U81: =ДДС!X39 -> 0 | V81: =ДДС!Y39 -> 0 | W81: =ДДС!Z39 -> 0 | X81: =ДДС!AA39 -> 0 | Y81: =ДДС!AB39 -> 0 | Z81: =ДДС!AC39 -> 0 | AA81: =ДДС!AD39 -> 0 | AB81: =ДДС!AE39 -> 0 | AC81: =ДДС!AF39 -> 0 | AD81: =ДДС!AG39 -> 0 | AE81: =ДДС!AH39 -> 0 | AF81: =ДДС!AI39 -> 0
C82: Выплата кредитов | D82: тыс. руб. | F82: =ДДС!I40 -> 0 | G82: =ДДС!J40 -> 0 | H82: =ДДС!K40 -> 0 | I82: =ДДС!L40 -> 0 | J82: =ДДС!M40 -> 0 | K82: =ДДС!N40 -> 4087958.848 | L82: =ДДС!O40 -> 4054689.6 | M82: =ДДС!P40 -> 4153606.203 | N82: =ДДС!Q40 -> 4127466.08 | O82: =ДДС!R40 -> 4101325.957 | P82: =ДДС!S40 -> 4262622.4 | Q82: =ДДС!T40 -> 4314605.6 | R82: =ДДС!U40 -> 4325002.24 | S82: =ДДС!V40 -> 4335398.88 | T82: =ДДС!W40 -> 4345795.52 | U82: =ДДС!X40 -> 4356192.16 | V82: =ДДС!Y40 -> 4366588.8 | W82: =ДДС!Z40 -> 4376985.44 | X82: =ДДС!AA40 -> 4387382.08 | Y82: =ДДС!AB40 -> 4397778.72 | Z82: =ДДС!AC40 -> 4408175.36 | AA82: =ДДС!AD40 -> 4418572 | AB82: =ДДС!AE40 -> 4428968.64 | AC82: =ДДС!AF40 -> 4439365.28 | AD82: =ДДС!AG40 -> 4449761.92 | AE82: =ДДС!AH40 -> 4460158.56 | AF82: =ДДС!AI40 -> 0
C83: Процентные и комиссионные выплаты | D83: тыс. руб. | F83: =ДДС!I41 -> 0 | G83: =ДДС!J41 -> 0 | H83: =ДДС!K41 -> 0 | I83: =ДДС!L41 -> 0 | J83: =ДДС!M41 -> 0 | K83: =ДДС!N41 -> 3977243.296 | L83: =ДДС!O41 -> 3742140.61 | M83: =ДДС!P41 -> 3625752.082 | N83: =ДДС!Q41 -> 3396560.628 | O83: =ДДС!R41 -> 3169983.187 | P83: =ДДС!S41 -> 3081520.777 | Q83: =ДДС!T41 -> 2903370.018 | R83: =ДДС!U41 -> 2694115.979 | S83: =ДДС!V41 -> 2483822.275 | T83: =ДДС!W41 -> 2272488.907 | U83: =ДДС!X41 -> 2060115.876 | V83: =ДДС!Y41 -> 1846703.18 | W83: =ДДС!Z41 -> 1632250.82 | X83: =ДДС!AA41 -> 1416758.797 | Y83: =ДДС!AB41 -> 1200227.109 | Z83: =ДДС!AC41 -> 982655.7573 | AA83: =ДДС!AD41 -> 764044.7417 | AB83: =ДДС!AE41 -> 544394.062 | AC83: =ДДС!AF41 -> 323703.7183 | AD83: =ДДС!AG41 -> 101973.7107 | AE83: =ДДС!AH41 -> 0 | AF83: =ДДС!AI41 -> 0
B86: Ключевые показатели эффективности
F87: 2019 | G87: 2020 | H87: 2021 | I87: 2022 | J87: 2023 | K87: 2024 | L87: 2025 | M87: 2026 | N87: 2027 | O87: 2028 | P87: 2029 | Q87: 2030 | R87: 2031 | S87: 2032 | T87: 2033 | U87: 2034 | V87: 2035 | W87: 2036 | X87: 2037 | Y87: 2038 | Z87: 2039 | AA87: 2040 | AB87: 2041 | AC87: 2042 | AD87: 2043 | AE87: 2044
C88: Коэф-ты рентабельности
C89: Валовая рент-ть | D89: % | F89: =ОПУ!I51 -> 0 | G89: =ОПУ!J51 -> 0 | H89: =ОПУ!K51 -> 0 | I89: =ОПУ!L51 -> 0 | J89: =ОПУ!M51 -> 0 | K89: =ОПУ!N51 -> 0.6507632529 | L89: =ОПУ!O51 -> 0.6500655473 | M89: =ОПУ!P51 -> 0.6486538475 | N89: =ОПУ!Q51 -> 0.6467415845 | O89: =ОПУ!R51 -> 0.6445982303 | P89: =ОПУ!S51 -> 0.641929133 | Q89: =ОПУ!T51 -> 0.6387488225 | R89: =ОПУ!U51 -> 0.6351887284 | S89: =ОПУ!V51 -> 0.6310882149 | T89: =ОПУ!W51 -> 0.6264871851 | U89: =ОПУ!X51 -> 0.6213392314 | V89: =ОПУ!Y51 -> 0.6156238322 | W89: =ОПУ!Z51 -> 0.6092927235 | X89: =ОПУ!AA51 -> 0.6024700892 | Y89: =ОПУ!AB51 -> 0.5954887055 | Z89: =ОПУ!AC51 -> 0.5888939977 | AA89: =ОПУ!AD51 -> 0.5815761709 | AB89: =ОПУ!AE51 -> 0.5740911333 | AC89: =ОПУ!AF51 -> 0.5664358623 | AD89: =ОПУ!AG51 -> 0.5586072676 | AE89: =ОПУ!AH51 -> 0.5506021891
C90: EBITDA рент-ть | D90: % | F90: =ОПУ!I61 -> 0 | G90: =ОПУ!J61 -> 0 | H90: =ОПУ!K61 -> 0 | I90: =ОПУ!L61 -> 0 | J90: =ОПУ!M61 -> 0 | K90: =ОПУ!N61 -> 0.5803457224 | L90: =ОПУ!O61 -> 0.5851919981 | M90: =ОПУ!P61 -> 0.5869089626 | N90: =ОПУ!Q61 -> 0.5897618335 | O90: =ОПУ!R61 -> 0.5920875895 | P90: =ОПУ!S61 -> 0.5913532674 | Q90: =ОПУ!T61 -> 0.5913627536 | R90: =ОПУ!U61 -> 0.5912818432 | S90: =ОПУ!V61 -> 0.5904736397 | T90: =ОПУ!W61 -> 0.5889939417 | U90: =ОПУ!X61 -> 0.5868110907 | V90: =ОПУ!Y61 -> 0.583918279 | W90: =ОПУ!Z61 -> 0.5802800216 | X90: =ОПУ!AA61 -> 0.57603244 | Y90: =ОПУ!AB61 -> 0.571548466 | Z90: =ОПУ!AC61 -> 0.567375361 | AA90: =ОПУ!AD61 -> 0.5624051277 | AB90: =ОПУ!AE61 -> 0.5571954346 | AC90: =ОПУ!AF61 -> 0.5517449825 | AD90: =ОПУ!AG61 -> 0.5460523684 | AE90: =ОПУ!AH61 -> 0.5401160842
C91: Чистая рент-ть | D91: % | F91: =ОПУ!I81 -> 0 | G91: =ОПУ!J81 -> 0 | H91: =ОПУ!K81 -> 0 | I91: =ОПУ!L81 -> 0 | J91: =ОПУ!M81 -> 0 | K91: =ОПУ!N81 -> 0.2453802338 | L91: =ОПУ!O81 -> 0.2637144656 | M91: =ОПУ!P81 -> 0.2720813571 | N91: =ОПУ!Q81 -> 0.2867228019 | O91: =ОПУ!R81 -> 0.3002023279 | P91: =ОПУ!S81 -> 0.3029446346 | Q91: =ОПУ!T81 -> 0.310522015 | R91: =ОПУ!U81 -> 0.3191504894 | S91: =ОПУ!V81 -> 0.3267022534 | T91: =ОПУ!W81 -> 0.333260404 | U91: =ОПУ!X81 -> 0.3388352232 | V91: =ОПУ!Y81 -> 0.3434542854 | W91: =ОПУ!Z81 -> 0.347119875 | X91: =ОПУ!AA81 -> 0.3499694316 | Y91: =ОПУ!AB81 -> 0.3524547347 | Z91: =ОПУ!AC81 -> 0.3574780515 | AA91: =ОПУ!AD81 -> 0.3591949978 | AB91: =ОПУ!AE81 -> 0.3605577235 | AC91: =ОПУ!AF81 -> 0.3615689563 | AD91: =ОПУ!AG81 -> 0.3622312632 | AE91: =ОПУ!AH81 -> 0.3604787308
C94: Показатели долговой нагрузки
C95: CFADS | D95: тыс. руб. | F95: ='Дисконтированные потоки'!I38 -> 8072 | G95: ='Дисконтированные потоки'!J38 -> 131808 | H95: ='Дисконтированные потоки'!K38 -> 338880 | I95: ='Дисконтированные потоки'!L38 -> 342000 | J95: ='Дисконтированные потоки'!M38 -> 405840 | K95: ='Дисконтированные потоки'!N38 -> 35201915.1 | L95: ='Дисконтированные потоки'!O38 -> 19954051.05 | M95: ='Дисконтированные потоки'!P38 -> 20377234.25 | N95: ='Дисконтированные потоки'!Q38 -> 20669774.14 | O95: ='Дисконтированные потоки'!R38 -> 20963675.94 | P95: ='Дисконтированные потоки'!S38 -> 21374984.98 | Q95: ='Дисконтированные потоки'!T38 -> 21671962.35 | R95: ='Дисконтированные потоки'!U38 -> 21919692.39 | S95: ='Дисконтированные потоки'!V38 -> 22137152.41 | T95: ='Дисконтированные потоки'!W38 -> 22325283.31 | U95: ='Дисконтированные потоки'!X38 -> 22479553.52 | V95: ='Дисконтированные потоки'!Y38 -> 22597247.28 | W95: ='Дисконтированные потоки'!Z38 -> 22673835.99 | X95: ='Дисконтированные потоки'!AA38 -> 22717544.79 | Y95: ='Дисконтированные потоки'!AB38 -> 22756884.2 | Z95: ='Дисконтированные потоки'!AC38 -> 22807248.4 | AA95: ='Дисконтированные потоки'!AD38 -> 22836609.46 | AB95: ='Дисконтированные потоки'!AE38 -> 22860381.74 | AC95: ='Дисконтированные потоки'!AF38 -> 22878115.85 | AD95: ='Дисконтированные потоки'!AG38 -> 22889339.33 | AE95: ='Дисконтированные потоки'!AH38 -> 23038510.78
C96: DSCR | F96: ='Дисконтированные потоки'!I39 -> 0 | G96: ='Дисконтированные потоки'!J39 -> 0 | H96: ='Дисконтированные потоки'!K39 -> 0 | I96: ='Дисконтированные потоки'!L39 -> 0 | J96: ='Дисконтированные потоки'!M39 -> 0 | K96: ='Дисконтированные потоки'!N39 -> 8.850832721 | L96: ='Дисконтированные потоки'!O39 -> 5.332255821 | M96: ='Дисконтированные потоки'!P39 -> 5.620139985 | N96: ='Дисконтированные потоки'!Q39 -> 6.085501305 | O96: ='Дисконтированные потоки'!R39 -> 6.613182058 | P96: ='Дисконтированные потоки'!S39 -> 6.936505228 | Q96: ='Дисконтированные потоки'!T39 -> 7.464416253 | R96: ='Дисконтированные потоки'!U39 -> 8.136135403 | S96: ='Дисконтированные потоки'!V39 -> 8.912534778 | T96: ='Дисконтированные потоки'!W39 -> 9.82415502 | U96: ='Дисконтированные потоки'!X39 -> 10.91179083 | V96: ='Дисконтированные потоки'!Y39 -> 12.23653456 | W96: ='Дисконтированные потоки'!Z39 -> 13.89114694 | X96: ='Дисконтированные потоки'!AA39 -> 16.03487117 | Y96: ='Дисконтированные потоки'!AB39 -> 18.96048175 | Z96: ='Дисконтированные потоки'!AC39 -> 23.20980489 | AA96: ='Дисконтированные потоки'!AD39 -> 29.8890997 | AB96: ='Дисконтированные потоки'!AE39 -> 41.99234219 | AC96: ='Дисконтированные потоки'!AF39 -> 70.67609839 | AD96: ='Дисконтированные потоки'!AG39 -> 224.4631403 | AE96: ='Дисконтированные потоки'!AH39 -> 0
C97: Долг / EBITDA | F97: =IF(F68=0, 0, IF(F75/F68<0, neg, IF(F75/F68>10, ">10х",F75/F68))) -> 0 | G97: =IF(G68=0, 0, IF(G75/G68<0, neg, IF(G75/G68>10, ">10х",G75/G68))) -> 0 | H97: =IF(H68=0, 0, IF(H75/H68<0, neg, IF(H75/H68>10, ">10х",H75/H68))) -> 0 | I97: =IF(I68=0, 0, IF(I75/I68<0, neg, IF(I75/I68>10, ">10х",I75/I68))) -> 0 | J97: =IF(J68=0, 0, IF(J75/J68<0, neg, IF(J75/J68>10, ">10х",J75/J68))) -> 0 | K97: =IF(K68=0, 0, IF(K75/K68<0, neg, IF(K75/K68>10, ">10х",K75/K68))) -> 4.616916896 | L97: =IF(L68=0, 0, IF(L75/L68<0, neg, IF(L75/L68>10, ">10х",L75/L68))) -> 4.158370583 | M97: =IF(M68=0, 0, IF(M75/M68<0, neg, IF(M75/M68>10, ">10х",M75/M68))) -> 3.884663512 | N97: =IF(N68=0, 0, IF(N75/N68<0, neg, IF(N75/N68>10, ">10х",N75/N68))) -> 3.505974286 | O97: =IF(O68=0, 0, IF(O75/O68<0, neg, IF(O75/O68>10, ">10х",O75/O68))) -> 3.156575448 | P97: =IF(P68=0, 0, IF(P75/P68<0, neg, IF(P75/P68>10, ">10х",P75/P68))) -> 2.978756224 | Q97: =IF(Q68=0, 0, IF(Q75/Q68<0, neg, IF(Q75/Q68>10, ">10х",Q75/Q68))) -> 2.723443122 | R97: =IF(R68=0, 0, IF(R75/R68<0, neg, IF(R75/R68>10, ">10х",R75/R68))) -> 2.454666646 | S97: =IF(S68=0, 0, IF(S75/S68<0, neg, IF(S75/S68>10, ">10х",S75/S68))) -> 2.202388353 | T97: =IF(T68=0, 0, IF(T75/T68<0, neg, IF(T75/T68>10, ">10х",T75/T68))) -> 1.964293923 | U97: =IF(U68=0, 0, IF(U75/U68<0, neg, IF(U75/U68>10, ">10х",U75/U68))) -> 1.738590752 | V97: =IF(V68=0, 0, IF(V75/V68<0, neg, IF(V75/V68>10, ">10х",V75/V68))) -> 1.523519067 | W97: =IF(W68=0, 0, IF(W75/W68<0, neg, IF(W75/W68>10, ">10х",W75/W68))) -> 1.317494439 | X97: =IF(X68=0, 0, IF(X75/X68<0, neg, IF(X75/X68>10, ">10х",X75/X68))) -> 1.118647607 | Y97: =IF(Y68=0, 0, IF(Y75/Y68<0, neg, IF(Y75/Y68>10, ">10х",Y75/Y68))) -> 0.9238556341 | Z97: =IF(Z68=0, 0, IF(Z75/Z68<0, neg, IF(Z75/Z68>10, ">10х",Z75/Z68))) -> 0.7321034345 | AA97: =IF(AA68=0, 0, IF(AA75/AA68<0, neg, IF(AA75/AA68>10, ">10х",AA75/AA68))) -> 0.5446885506 | AB97: =IF(AB68=0, 0, IF(AB75/AB68<0, neg, IF(AB75/AB68>10, ">10х",AB75/AB68))) -> 0.3604040343 | AC97: =IF(AC68=0, 0, IF(AC75/AC68<0, neg, IF(AC75/AC68>10, ">10х",AC75/AC68))) -> 0.1789440844 | AD97: =IF(AD68=0, 0, IF(AD75/AD68<0, neg, IF(AD75/AD68>10, ">10х",AD75/AD68))) -> 1.144702375e-15 | AE97: =IF(AE68=0, 0, IF(AE75/AE68<0, neg, IF(AE75/AE68>10, ">10х",AE75/AE68))) -> 0
C98: Долг / Собственные средства | F98: =IFERROR(SUM(F75)/F80,0) -> 0 | G98: =IFERROR(SUM(G75)/G80,0) -> 0.8687447805 | H98: =IFERROR(SUM(H75)/H80,0) -> 1.510198901 | I98: 3.204951869 | J98: 5.127481364 | K98: 1.376462801 | L98: 1.459541517 | M98: 1.182137211 | N98: 0.9401172798 | O98: 0.7544522611 | P98: 0.6397921283 | Q98: 0.5310557665 | R98: 0.4375088737 | S98: 0.360550946 | T98: 0.2966069052 | U98: 0.2429987662 | V98: 0.1976877456 | W98: 0.1591012807 | X98: 0.1260075526 | Y98: 0.09742047104 | Z98: 0.07257237478 | AA98: 0.05085001639 | AB98: 0.03176546138 | AC98: 0.01492331525 | AD98: 9.050621752e-17 | AE98: 0
C102: 2. Оценка бюджетной эффективности проекта
C104: Бюджетная эффективность**
F105: 2019 | G105: 2020 | H105: 2021 | I105: 2022 | J105: 2023 | K105: 2024 | L105: 2025 | M105: 2026 | N105: 2027 | O105: 2028 | P105: 2029 | Q105: 2030 | R105: 2031 | S105: 2032 | T105: 2033 | U105: 2034 | V105: 2035 | W105: 2036 | X105: 2037 | Y105: 2038 | Z105: 2039 | AA105: 2040 | AB105: 2041 | AC105: 2042 | AD105: 2043 | AE105: 2044
C106: Всего выплаты в бюджет и внебюджетные фонды | D106: тыс. руб. | F106: =F107+F120+F124 -> 0 | G106: =G107+G120+G124 -> 0 | H106: 0 | I106: 0 | J106: 0 | K106: 4010556.808 | L106: 4121682.933 | M106: 4225492.867 | N106: 4324100.694 | O106: 4422305.385 | P106: 4511625.953 | Q106: =Q107+Q120+Q124 -> 4595584.485 | R106: 4674480.672 | S106: 4745940.601 | T106: 4809684.626 | U106: 4864822.733 | V106: 4910665.754 | W106: 4946323.615 | X106: =X107+X120+X124 -> 4972326.28 | Y106: 4997052.431 | Z106: 5051159.51 | AA106: 5073063.346 | AB106: 5093348.475 | AC106: 5111889.094 | AD106: 5128553.093 | AE106: 5119042.59
C107: 1. Всего налоги | D107: тыс. руб. | F107: =SUM(F108,F114) -> 0 | G107: =SUM(G108,G114) -> 0 | H107: 0 | I107: 0 | J107: 0 | K107: 3877303.554 | L107: 3983099.549 | M107: 4081366.148 | N107: 4174208.905 | O107: 4266417.926 | P107: 4349502.995 | Q107: 4426976.609 | R107: 4499128.48 | S107: 4563574.322 | T107: 4620023.696 | U107: 4667575.365 | V107: 4705528.491 | W107: 4732980.862 | X107: =SUM(X108,X114) -> 4750448.817 | Y107: 4766298.909 | Z107: 4811174.928 | AA107: 4823478.5 | AB107: 4833779.395 | AC107: 4841936.451 | AD107: 4847801.584 | AE107: 4827060.301
C108: Федеральный бюджет | F108: =SUM(F109:F113) -> 0 | G108: =SUM(G109:G113) -> 0 | H108: 0 | I108: 0 | J108: 0 | K108: 373439.4119 | L108: 415242.5082 | M108: 442392.9337 | N108: 480772.5249 | O108: 518784.2376 | P108: 538822.2282 | Q108: 567758.8036 | R108: 599149.6865 | S108: 628982.7915 | T108: 657196.1446 | U108: 683599.4647 | V108: 708044.5138 | W108: 730340.7225 | X108: =SUM(X109:X113) -> 750595.3735 | Y108: 770564.2481 | Z108: 796681.2996 | AA108: 816009.5776 | AB108: 834967.3897 | AC108: 853523.6941 | AD108: 871645.9398 | AE108: 884226.5713
C109: НДС | D109: тыс. руб.
C110: Акцизы | D110: тыс. руб.
C111: Налог на прибыль | D111: тыс. руб. | F111: =ОПУ!I78*21% -> 0 | G111: =ОПУ!J78*21% -> 0 | H111: =ОПУ!K78*21% -> 0 | I111: =ОПУ!L78*21% -> 0 | J111: =ОПУ!M78*21% -> 0 | K111: =ОПУ!N78*21% -> 373439.4119 | L111: =ОПУ!O78*21% -> 415242.5082 | M111: =ОПУ!P78*21% -> 442392.9337 | N111: =ОПУ!Q78*21% -> 480772.5249 | O111: =ОПУ!R78*21% -> 518784.2376 | P111: =ОПУ!S78*21% -> 538822.2282 | Q111: =ОПУ!T78*21% -> 567758.8036 | R111: =ОПУ!U78*21% -> 599149.6865 | S111: =ОПУ!V78*21% -> 628982.7915 | T111: =ОПУ!W78*21% -> 657196.1446 | U111: =ОПУ!X78*21% -> 683599.4647 | V111: =ОПУ!Y78*21% -> 708044.5138 | W111: =ОПУ!Z78*21% -> 730340.7225 | X111: =ОПУ!AA78*21% -> 750595.3735 | Y111: =ОПУ!AB78*21% -> 770564.2481 | Z111: =ОПУ!AC78*21% -> 796681.2996 | AA111: =ОПУ!AD78*21% -> 816009.5776 | AB111: =ОПУ!AE78*21% -> 834967.3897 | AC111: =ОПУ!AF78*21% -> 853523.6941 | AD111: =ОПУ!AG78*21% -> 871645.9398 | AE111: =ОПУ!AH78*21% -> 884226.5713
C112: НДПИ | D112: тыс. руб.
C113: Прочие | D113: тыс. руб.
C114: Региональный бюджет | F114: =SUM(F115:F119) -> 0 | G114: 0 | H114: 0 | I114: 0 | J114: 0 | K114: 3503864.142 | L114: 3567857.041 | M114: 3638973.214 | N114: 3693436.38 | O114: 3747633.688 | P114: 3810680.767 | Q114: 3859217.805 | R114: 3899978.794 | S114: 3934591.53 | T114: 3962827.551 | U114: 3983975.9 | V114: 3997483.978 | W114: 4002640.14 | X114: =SUM(X115:X119) -> 3999853.444 | Y114: 3995734.661 | Z114: 4014493.628 | AA114: 4007468.922 | AB114: 3998812.006 | AC114: 3988412.757 | AD114: 3976155.645 | AE114: 3942833.73
C115: Налог на имущество организаций | D115: тыс. руб. | F115: =ОПУ!I55 -> 0 | G115: =ОПУ!J55 -> 0 | H115: =ОПУ!K55 -> 0 | I115: =ОПУ!L55 -> 0 | J115: =ОПУ!M55 -> 0 | K115: =ОПУ!N55 -> 2041277.563 | L115: =ОПУ!O55 -> 1945701.472 | M115: =ОПУ!P55 -> 1912278.218 | N115: =ОПУ!Q55 -> 1819862.821 | O115: =ОПУ!R55 -> 1728465.561 | P115: =ОПУ!S55 -> 1713429.579 | Q115: =ОПУ!T55 -> 1650299.845 | R115: =ОПУ!U55 -> 1570048.785 | S115: =ОПУ!V55 -> 1489392.784 | T115: =ОПУ!W55 -> 1408331.842 | U115: =ОПУ!X55 -> 1326865.959 | V115: =ОПУ!Y55 -> 1244995.136 | W115: =ОПУ!Z55 -> 1162719.372 | X115: =ОПУ!AA55 -> 1080038.667 | Y115: =ОПУ!AB55 -> 996953.0208 | Z115: =ОПУ!AC55 -> 913462.4341 | AA115: =ОПУ!AD55 -> 829566.9067 | AB115: =ОПУ!AE55 -> 745266.4384 | AC115: =ОПУ!AF55 -> 660561.0293 | AD115: =ОПУ!AG55 -> 575450.6795 | AE115: =ОПУ!AH55 -> 489935.3888
C116: Налог на прибыль | D116: тыс. руб. | F116: =ОПУ!I78*79% -> 0 | G116: =ОПУ!J78*79% -> 0 | H116: =ОПУ!K78*79% -> 0 | I116: =ОПУ!L78*79% -> 0 | J116: =ОПУ!M78*79% -> 0 | K116: =ОПУ!N78*79% -> 1404843.502 | L116: =ОПУ!O78*79% -> 1562102.769 | M116: =ОПУ!P78*79% -> 1664240.084 | N116: =ОПУ!Q78*79% -> 1808620.451 | O116: =ОПУ!R78*79% -> 1951616.894 | P116: =ОПУ!S78*79% -> 2026997.906 | Q116: =ОПУ!T78*79% -> 2135854.547 | R116: =ОПУ!U78*79% -> 2253944.059 | S116: =ОПУ!V78*79% -> 2366173.359 | T116: =ОПУ!W78*79% -> 2472309.306 | U116: =ОПУ!X78*79% -> 2571636.082 | V116: =ОПУ!Y78*79% -> 2663596.028 | W116: =ОПУ!Z78*79% -> 2747472.242 | X116: =ОПУ!AA78*79% -> 2823668.31 | Y116: =ОПУ!AB78*79% -> 2898789.314 | Z116: =ОПУ!AC78*79% -> 2997039.175 | AA116: =ОПУ!AD78*79% -> 3069750.316 | AB116: =ОПУ!AE78*79% -> 3141067.8 | AC116: =ОПУ!AF78*79% -> 3210874.849 | AD116: =ОПУ!AG78*79% -> 3279049.012 | AE116: =ОПУ!AH78*79% -> 3326376.149
C117: НДФЛ | D117: тыс. руб. | F117: ='Фонд оплаты труда'!C8+'Фонд оплаты труда'!C18+'Фонд оплаты труда'!C28+'Фонд оплаты труда'!C38 -> 0 | G117: ='Фонд оплаты труда'!D8+'Фонд оплаты труда'!D18+'Фонд оплаты труда'!D28+'Фонд оплаты труда'!D38 -> 0 | H117: ='Фонд оплаты труда'!E8+'Фонд оплаты труда'!E18+'Фонд оплаты труда'!E28+'Фонд оплаты труда'!E38 -> 0 | I117: ='Фонд оплаты труда'!F8+'Фонд оплаты труда'!F18+'Фонд оплаты труда'!F28+'Фонд оплаты труда'!F38 -> 0 | J117: ='Фонд оплаты труда'!G8+'Фонд оплаты труда'!G18+'Фонд оплаты труда'!G28+'Фонд оплаты труда'!G38 -> 0 | K117: ='Фонд оплаты труда'!H8+'Фонд оплаты труда'!H18+'Фонд оплаты труда'!H28+'Фонд оплаты труда'!H38 -> 57743.07674 | L117: ='Фонд оплаты труда'!I8+'Фонд оплаты труда'!I18+'Фонд оплаты труда'!I28+'Фонд оплаты труда'!I38 -> 60052.79981 | M117: ='Фонд оплаты труда'!J8+'Фонд оплаты труда'!J18+'Фонд оплаты труда'!J28+'Фонд оплаты труда'!J38 -> 62454.9118 | N117: ='Фонд оплаты труда'!K8+'Фонд оплаты труда'!K18+'Фонд оплаты труда'!K28+'Фонд оплаты труда'!K38 -> 64953.10827 | O117: ='Фонд оплаты труда'!L8+'Фонд оплаты труда'!L18+'Фонд оплаты труда'!L28+'Фонд оплаты труда'!L38 -> 67551.2326 | P117: ='Фонд оплаты труда'!M8+'Фонд оплаты труда'!M18+'Фонд оплаты труда'!M28+'Фонд оплаты труда'!M38 -> 70253.28191 | Q117: ='Фонд оплаты труда'!N8+'Фонд оплаты труда'!N18+'Фонд оплаты труда'!N28+'Фонд оплаты труда'!N38 -> 73063.41319 | R117: ='Фонд оплаты труда'!O8+'Фонд оплаты труда'!O18+'Фонд оплаты труда'!O28+'Фонд оплаты труда'!O38 -> 75985.94971 | S117: ='Фонд оплаты труда'!P8+'Фонд оплаты труда'!P18+'Фонд оплаты труда'!P28+'Фонд оплаты труда'!P38 -> 79025.3877 | T117: ='Фонд оплаты труда'!Q8+'Фонд оплаты труда'!Q18+'Фонд оплаты труда'!Q28+'Фонд оплаты труда'!Q38 -> 82186.40321 | U117: ='Фонд оплаты труда'!R8+'Фонд оплаты труда'!R18+'Фонд оплаты труда'!R28+'Фонд оплаты труда'!R38 -> 85473.85934 | V117: ='Фонд оплаты труда'!S8+'Фонд оплаты труда'!S18+'Фонд оплаты труда'!S28+'Фонд оплаты труда'!S38 -> 88892.81371 | W117: ='Фонд оплаты труда'!T8+'Фонд оплаты труда'!T18+'Фонд оплаты труда'!T28+'Фонд оплаты труда'!T38 -> 92448.52626 | X117: ='Фонд оплаты труда'!U8+'Фонд оплаты труда'!U18+'Фонд оплаты труда'!U28+'Фонд оплаты труда'!U38 -> 96146.46731 | Y117: ='Фонд оплаты труда'!V8+'Фонд оплаты труда'!V18+'Фонд оплаты труда'!V28+'Фонд оплаты труда'!V38 -> 99992.326 | Z117: ='Фонд оплаты труда'!W8+'Фонд оплаты труда'!W18+'Фонд оплаты труда'!W28+'Фонд оплаты труда'!W38 -> 103992.019 | AA117: ='Фонд оплаты труда'!X8+'Фонд оплаты труда'!X18+'Фонд оплаты труда'!X28+'Фонд оплаты труда'!X38 -> 108151.6998 | AB117: ='Фонд оплаты труда'!Y8+'Фонд оплаты труда'!Y18+'Фонд оплаты труда'!Y28+'Фонд оплаты труда'!Y38 -> 112477.7678 | AC117: ='Фонд оплаты труда'!Z8+'Фонд оплаты труда'!Z18+'Фонд оплаты труда'!Z28+'Фонд оплаты труда'!Z38 -> 116976.8785 | AD117: ='Фонд оплаты труда'!AA8+'Фонд оплаты труда'!AA18+'Фонд оплаты труда'!AA28+'Фонд оплаты труда'!AA38 -> 121655.9536 | AE117: ='Фонд оплаты труда'!AB8+'Фонд оплаты труда'!AB18+'Фонд оплаты труда'!AB28+'Фонд оплаты труда'!AB38 -> 126522.1918
C118: НДПИ | D118: тыс. руб.
C119: Прочие | D119: тыс. руб.
C120: 2. Страховые взносы во внебюджетные фонды | D120: тыс. руб. | F120: =F121+F122+F123 -> 0 | G120: =G121+G122+G123 -> 0 | H120: 0 | I120: 0 | J120: 0 | K120: 133253.254 | L120: 138583.3842 | M120: 144126.7195 | N120: 149891.7883 | O120: 155887.4599 | P120: 162122.9583 | Q120: 168607.8766 | R120: 175352.1916 | S120: 182366.2793 | T120: 189660.9305 | U120: 197247.3677 | V120: 205137.2624 | W120: 213342.7529 | X120: =X121+X122+X123 -> 221876.463 | Y120: 230751.5215 | Z120: 239981.5824 | AA120: 249580.8457 | AB120: 259564.0795 | AC120: 269946.6427 | AD120: 280744.5084 | AE120: 291974.2888
C121: Пенсионный фонд | D121: тыс. руб. | F121: ='Фонд оплаты труда'!C9+'Фонд оплаты труда'!C19+'Фонд оплаты труда'!C29+'Фонд оплаты труда'!C39 -> 0 | G121: ='Фонд оплаты труда'!D9+'Фонд оплаты труда'!D19+'Фонд оплаты труда'!D29+'Фонд оплаты труда'!D39 -> 0 | H121: ='Фонд оплаты труда'!E9+'Фонд оплаты труда'!E19+'Фонд оплаты труда'!E29+'Фонд оплаты труда'!E39 -> 0 | I121: ='Фонд оплаты труда'!F9+'Фонд оплаты труда'!F19+'Фонд оплаты труда'!F29+'Фонд оплаты труда'!F39 -> 0 | J121: ='Фонд оплаты труда'!G9+'Фонд оплаты труда'!G19+'Фонд оплаты труда'!G29+'Фонд оплаты труда'!G39 -> 0 | K121: ='Фонд оплаты труда'!H9+'Фонд оплаты труда'!H19+'Фонд оплаты труда'!H29+'Фонд оплаты труда'!H39 -> 97719.05294 | L121: ='Фонд оплаты труда'!I9+'Фонд оплаты труда'!I19+'Фонд оплаты труда'!I29+'Фонд оплаты труда'!I39 -> 101627.8151 | M121: ='Фонд оплаты труда'!J9+'Фонд оплаты труда'!J19+'Фонд оплаты труда'!J29+'Фонд оплаты труда'!J39 -> 105692.9277 | N121: ='Фонд оплаты труда'!K9+'Фонд оплаты труда'!K19+'Фонд оплаты труда'!K29+'Фонд оплаты труда'!K39 -> 109920.6448 | O121: ='Фонд оплаты труда'!L9+'Фонд оплаты труда'!L19+'Фонд оплаты труда'!L29+'Фонд оплаты труда'!L39 -> 114317.4706 | P121: ='Фонд оплаты труда'!M9+'Фонд оплаты труда'!M19+'Фонд оплаты труда'!M29+'Фонд оплаты труда'!M39 -> 118890.1694 | Q121: ='Фонд оплаты труда'!N9+'Фонд оплаты труда'!N19+'Фонд оплаты труда'!N29+'Фонд оплаты труда'!N39 -> 123645.7762 | R121: ='Фонд оплаты труда'!O9+'Фонд оплаты труда'!O19+'Фонд оплаты труда'!O29+'Фонд оплаты труда'!O39 -> 128591.6072 | S121: ='Фонд оплаты труда'!P9+'Фонд оплаты труда'!P19+'Фонд оплаты труда'!P29+'Фонд оплаты труда'!P39 -> 133735.2715 | T121: ='Фонд оплаты труда'!Q9+'Фонд оплаты труда'!Q19+'Фонд оплаты труда'!Q29+'Фонд оплаты труда'!Q39 -> 139084.6824 | U121: ='Фонд оплаты труда'!R9+'Фонд оплаты труда'!R19+'Фонд оплаты труда'!R29+'Фонд оплаты труда'!R39 -> 144648.0696 | V121: ='Фонд оплаты труда'!S9+'Фонд оплаты труда'!S19+'Фонд оплаты труда'!S29+'Фонд оплаты труда'!S39 -> 150433.9924 | W121: ='Фонд оплаты труда'!T9+'Фонд оплаты труда'!T19+'Фонд оплаты труда'!T29+'Фонд оплаты труда'!T39 -> 156451.3521 | X121: ='Фонд оплаты труда'!U9+'Фонд оплаты труда'!U19+'Фонд оплаты труда'!U29+'Фонд оплаты труда'!U39 -> 162709.4062 | Y121: ='Фонд оплаты труда'!V9+'Фонд оплаты труда'!V19+'Фонд оплаты труда'!V29+'Фонд оплаты труда'!V39 -> 169217.7825 | Z121: ='Фонд оплаты труда'!W9+'Фонд оплаты труда'!W19+'Фонд оплаты труда'!W29+'Фонд оплаты труда'!W39 -> 175986.4938 | AA121: ='Фонд оплаты труда'!X9+'Фонд оплаты труда'!X19+'Фонд оплаты труда'!X29+'Фонд оплаты труда'!X39 -> 183025.9535 | AB121: ='Фонд оплаты труда'!Y9+'Фонд оплаты труда'!Y19+'Фонд оплаты труда'!Y29+'Фонд оплаты труда'!Y39 -> 190346.9917 | AC121: ='Фонд оплаты труда'!Z9+'Фонд оплаты труда'!Z19+'Фонд оплаты труда'!Z29+'Фонд оплаты труда'!Z39 -> 197960.8713 | AD121: ='Фонд оплаты труда'!AA9+'Фонд оплаты труда'!AA19+'Фонд оплаты труда'!AA29+'Фонд оплаты труда'!AA39 -> 205879.3062 | AE121: ='Фонд оплаты труда'!AB9+'Фонд оплаты труда'!AB19+'Фонд оплаты труда'!AB29+'Фонд оплаты труда'!AB39 -> 214114.4784
C122: Фонд обязательного медицинского страхования | D122: тыс. руб. | F122: ='Фонд оплаты труда'!C10+'Фонд оплаты труда'!C20+'Фонд оплаты труда'!C30+'Фонд оплаты труда'!C40 -> 0 | G122: ='Фонд оплаты труда'!D10+'Фонд оплаты труда'!D20+'Фонд оплаты труда'!D30+'Фонд оплаты труда'!D40 -> 0 | H122: ='Фонд оплаты труда'!E10+'Фонд оплаты труда'!E20+'Фонд оплаты труда'!E30+'Фонд оплаты труда'!E40 -> 0 | I122: ='Фонд оплаты труда'!F10+'Фонд оплаты труда'!F20+'Фонд оплаты труда'!F30+'Фонд оплаты труда'!F40 -> 0 | J122: ='Фонд оплаты труда'!G10+'Фонд оплаты труда'!G20+'Фонд оплаты труда'!G30+'Фонд оплаты труда'!G40 -> 0 | K122: ='Фонд оплаты труда'!H10+'Фонд оплаты труда'!H20+'Фонд оплаты труда'!H30+'Фонд оплаты труда'!H40 -> 22653.05318 | L122: ='Фонд оплаты труда'!I10+'Фонд оплаты труда'!I20+'Фонд оплаты труда'!I30+'Фонд оплаты труда'!I40 -> 23559.17531 | M122: ='Фонд оплаты труда'!J10+'Фонд оплаты труда'!J20+'Фонд оплаты труда'!J30+'Фонд оплаты труда'!J40 -> 24501.54232 | N122: ='Фонд оплаты труда'!K10+'Фонд оплаты труда'!K20+'Фонд оплаты труда'!K30+'Фонд оплаты труда'!K40 -> 25481.60402 | O122: ='Фонд оплаты труда'!L10+'Фонд оплаты труда'!L20+'Фонд оплаты труда'!L30+'Фонд оплаты труда'!L40 -> 26500.86818 | P122: ='Фонд оплаты труда'!M10+'Фонд оплаты труда'!M20+'Фонд оплаты труда'!M30+'Фонд оплаты труда'!M40 -> 27560.9029 | Q122: ='Фонд оплаты труда'!N10+'Фонд оплаты труда'!N20+'Фонд оплаты труда'!N30+'Фонд оплаты труда'!N40 -> 28663.33902 | R122: ='Фонд оплаты труда'!O10+'Фонд оплаты труда'!O20+'Фонд оплаты труда'!O30+'Фонд оплаты труда'!O40 -> 29809.87258 | S122: ='Фонд оплаты труда'!P10+'Фонд оплаты труда'!P20+'Фонд оплаты труда'!P30+'Фонд оплаты труда'!P40 -> 31002.26748 | T122: ='Фонд оплаты труда'!Q10+'Фонд оплаты труда'!Q20+'Фонд оплаты труда'!Q30+'Фонд оплаты труда'!Q40 -> 32242.35818 | U122: ='Фонд оплаты труда'!R10+'Фонд оплаты труда'!R20+'Фонд оплаты труда'!R30+'Фонд оплаты труда'!R40 -> 33532.05251 | V122: ='Фонд оплаты труда'!S10+'Фонд оплаты труда'!S20+'Фонд оплаты труда'!S30+'Фонд оплаты труда'!S40 -> 34873.33461 | W122: ='Фонд оплаты труда'!T10+'Фонд оплаты труда'!T20+'Фонд оплаты труда'!T30+'Фонд оплаты труда'!T40 -> 36268.26799 | X122: ='Фонд оплаты труда'!U10+'Фонд оплаты труда'!U20+'Фонд оплаты труда'!U30+'Фонд оплаты труда'!U40 -> 37718.99871 | Y122: ='Фонд оплаты труда'!V10+'Фонд оплаты труда'!V20+'Фонд оплаты труда'!V30+'Фонд оплаты труда'!V40 -> 39227.75866 | Z122: ='Фонд оплаты труда'!W10+'Фонд оплаты труда'!W20+'Фонд оплаты труда'!W30+'Фонд оплаты труда'!W40 -> 40796.86901 | AA122: ='Фонд оплаты труда'!X10+'Фонд оплаты труда'!X20+'Фонд оплаты труда'!X30+'Фонд оплаты труда'!X40 -> 42428.74377 | AB122: ='Фонд оплаты труда'!Y10+'Фонд оплаты труда'!Y20+'Фонд оплаты труда'!Y30+'Фонд оплаты труда'!Y40 -> 44125.89352 | AC122: ='Фонд оплаты труда'!Z10+'Фонд оплаты труда'!Z20+'Фонд оплаты труда'!Z30+'Фонд оплаты труда'!Z40 -> 45890.92926 | AD122: ='Фонд оплаты труда'!AA10+'Фонд оплаты труда'!AA20+'Фонд оплаты труда'!AA30+'Фонд оплаты труда'!AA40 -> 47726.56643 | AE122: ='Фонд оплаты труда'!AB10+'Фонд оплаты труда'!AB20+'Фонд оплаты труда'!AB30+'Фонд оплаты труда'!AB40 -> 49635.62909
C123: Фонд социального страхования | D123: тыс. руб. | F123: ='Фонд оплаты труда'!C11+'Фонд оплаты труда'!C21+'Фонд оплаты труда'!C31+'Фонд оплаты труда'!C41 -> 0 | G123: ='Фонд оплаты труда'!D11+'Фонд оплаты труда'!D21+'Фонд оплаты труда'!D31+'Фонд оплаты труда'!D41 -> 0 | H123: ='Фонд оплаты труда'!E11+'Фонд оплаты труда'!E21+'Фонд оплаты труда'!E31+'Фонд оплаты труда'!E41 -> 0 | I123: ='Фонд оплаты труда'!F11+'Фонд оплаты труда'!F21+'Фонд оплаты труда'!F31+'Фонд оплаты труда'!F41 -> 0 | J123: ='Фонд оплаты труда'!G11+'Фонд оплаты труда'!G21+'Фонд оплаты труда'!G31+'Фонд оплаты труда'!G41 -> 0 | K123: ='Фонд оплаты труда'!H11+'Фонд оплаты труда'!H21+'Фонд оплаты труда'!H31+'Фонд оплаты труда'!H41 -> 12881.14789 | L123: ='Фонд оплаты труда'!I11+'Фонд оплаты труда'!I21+'Фонд оплаты труда'!I31+'Фонд оплаты труда'!I41 -> 13396.3938 | M123: ='Фонд оплаты труда'!J11+'Фонд оплаты труда'!J21+'Фонд оплаты труда'!J31+'Фонд оплаты труда'!J41 -> 13932.24956 | N123: ='Фонд оплаты труда'!K11+'Фонд оплаты труда'!K21+'Фонд оплаты труда'!K31+'Фонд оплаты труда'!K41 -> 14489.53954 | O123: ='Фонд оплаты труда'!L11+'Фонд оплаты труда'!L21+'Фонд оплаты труда'!L31+'Фонд оплаты труда'!L41 -> 15069.12112 | P123: ='Фонд оплаты труда'!M11+'Фонд оплаты труда'!M21+'Фонд оплаты труда'!M31+'Фонд оплаты труда'!M41 -> 15671.88596 | Q123: ='Фонд оплаты труда'!N11+'Фонд оплаты труда'!N21+'Фонд оплаты труда'!N31+'Фонд оплаты труда'!N41 -> 16298.7614 | R123: ='Фонд оплаты труда'!O11+'Фонд оплаты труда'!O21+'Фонд оплаты труда'!O31+'Фонд оплаты труда'!O41 -> 16950.71186 | S123: ='Фонд оплаты труда'!P11+'Фонд оплаты труда'!P21+'Фонд оплаты труда'!P31+'Фонд оплаты труда'!P41 -> 17628.74033 | T123: ='Фонд оплаты труда'!Q11+'Фонд оплаты труда'!Q21+'Фонд оплаты труда'!Q31+'Фонд оплаты труда'!Q41 -> 18333.88995 | U123: ='Фонд оплаты труда'!R11+'Фонд оплаты труда'!R21+'Фонд оплаты труда'!R31+'Фонд оплаты труда'!R41 -> 19067.24554 | V123: ='Фонд оплаты труда'!S11+'Фонд оплаты труда'!S21+'Фонд оплаты труда'!S31+'Фонд оплаты труда'!S41 -> 19829.93537 | W123: ='Фонд оплаты труда'!T11+'Фонд оплаты труда'!T21+'Фонд оплаты труда'!T31+'Фонд оплаты труда'!T41 -> 20623.13278 | X123: ='Фонд оплаты труда'!U11+'Фонд оплаты труда'!U21+'Фонд оплаты труда'!U31+'Фонд оплаты труда'!U41 -> 21448.05809 | Y123: ='Фонд оплаты труда'!V11+'Фонд оплаты труда'!V21+'Фонд оплаты труда'!V31+'Фонд оплаты труда'!V41 -> 22305.98042 | Z123: ='Фонд оплаты труда'!W11+'Фонд оплаты труда'!W21+'Фонд оплаты труда'!W31+'Фонд оплаты труда'!W41 -> 23198.21963 | AA123: ='Фонд оплаты труда'!X11+'Фонд оплаты труда'!X21+'Фонд оплаты труда'!X31+'Фонд оплаты труда'!X41 -> 24126.14842 | AB123: ='Фонд оплаты труда'!Y11+'Фонд оплаты труда'!Y21+'Фонд оплаты труда'!Y31+'Фонд оплаты труда'!Y41 -> 25091.19435 | AC123: ='Фонд оплаты труда'!Z11+'Фонд оплаты труда'!Z21+'Фонд оплаты труда'!Z31+'Фонд оплаты труда'!Z41 -> 26094.84213 | AD123: ='Фонд оплаты труда'!AA11+'Фонд оплаты труда'!AA21+'Фонд оплаты труда'!AA31+'Фонд оплаты труда'!AA41 -> 27138.63581 | AE123: ='Фонд оплаты труда'!AB11+'Фонд оплаты труда'!AB21+'Фонд оплаты труда'!AB31+'Фонд оплаты труда'!AB41 -> 28224.18125
C124: 3. Иные обязательные платежи в бюджетную систему | D124: тыс. руб. | F124: 0 | G124: 0 | H124: 0 | I124: 0 | J124: 0 | K124: 0 | L124: 0 | M124: 0 | N124: 0 | O124: 0 | P124: 0 | Q124: 0 | R124: 0 | S124: 0 | T124: 0 | U124: 0 | V124: 0 | W124: 0 | X124: 1 | Y124: 2 | Z124: 3 | AA124: 4 | AB124: 5 | AC124: 6 | AD124: 7 | AE124: 8
C126: Всего поступления из бюджета и внебюджетных фондов | D126: тыс. руб. | F126: =F127+F128+F129 -> 0 | G126: =G127+G128+G129 -> 0 | H126: 0 | I126: 0 | J126: 0 | K126: 0 | L126: 0 | M126: 0 | N126: 0 | O126: 0 | P126: 0 | Q126: 0 | R126: 0 | S126: 0 | T126: 0 | U126: 0 | V126: 0 | W126: 0 | X126: 0 | Y126: 0 | Z126: 0 | AA126: 0 | AB126: 0 | AC126: 0 | AD126: 0 | AE126: 0
C127: - из федерального бюджета (за исключением возмещения НДС по капитальным затратам) | D127: тыс. руб.
C128: - из региональных и местных бюджетов | D128: тыс. руб.
C129: - из внебюджетных фондов. | D129: тыс. руб.
C131: Совокупный бюджетный денежный поток от проекта | D131: тыс. руб. | F131: =F106-F126 -> 0 | G131: =G106-G126 -> 0 | H131: 0 | I131: 0 | J131: 0 | K131: =K106-K126 -> 4010556.808 | L131: 4121682.933 | M131: 4225492.867 | N131: 4324100.694 | O131: 4422305.385 | P131: 4511625.953 | Q131: 4595584.485 | R131: 4674480.672 | S131: 4745940.601 | T131: 4809684.626 | U131: 4864822.733 | V131: 4910665.754 | W131: 4946323.615 | X131: =X106-X126 -> 4972326.28 | Y131: 4997052.431 | Z131: 5051159.51 | AA131: 5073063.346 | AB131: 5093348.475 | AC131: 5111889.094 | AD131: 5128553.093 | AE131: 5119042.59
C133: Длина периода | D133: год | F133: 1 | G133: 1 | H133: 1 | I133: 1 | J133: 1 | K133: 1 | L133: 1 | M133: 1 | N133: 1 | O133: 1 | P133: 1 | Q133: 1 | R133: 1 | S133: 1 | T133: 1 | U133: 1 | V133: 1 | W133: 1 | X133: 1 | Y133: 1 | Z133: 1 | AA133: 1 | AB133: 1 | AC133: 1 | AD133: 1 | AE133: 1
C134: Ставка дисконтирования (условно безрисковая ставка) | D134: % | F134: 0.08 | G134: 0.08 | H134: 0.08 | I134: 0.08 | J134: 0.08 | K134: 0.08 | L134: 0.08 | M134: 0.08 | N134: 0.08 | O134: 0.08 | P134: 0.08 | Q134: 0.08 | R134: 0.08 | S134: 0.08 | T134: 0.08 | U134: 0.08 | V134: 0.08 | W134: 0.08 | X134: 0.08 | Y134: 0.08 | Z134: 0.08 | AA134: 0.08 | AB134: 0.08 | AC134: 0.08 | AD134: 0.08 | AE134: 0.08
C135: Темп роста терминального периода | D135: % | AE135: 0.04
C136: Терминальная стоимость от проекта | D136: тыс. руб. | AE136: =AE131/(AE134-AE135) -> 127976064.7
C137: Дисконт-фактор по годам | H137: =1/(1+H134)^H133 -> 0.9259259259 | I137: 0.9259259259 | J137: 0.9259259259 | K137: 0.9259259259 | L137: 0.9259259259 | M137: 0.9259259259 | N137: 0.9259259259 | O137: 0.9259259259 | P137: 0.9259259259 | Q137: =1/(1+Q134)^Q133 -> 0.9259259259 | R137: 0.9259259259 | S137: 0.9259259259 | T137: 0.9259259259 | U137: 0.9259259259 | V137: 0.9259259259 | W137: 0.9259259259 | X137: 0.9259259259 | Y137: 0.9259259259 | Z137: 0.9259259259 | AA137: 0.9259259259 | AB137: 0.9259259259 | AC137: 0.9259259259 | AD137: 0.9259259259 | AE137: =1/(1+AE134)^AE133 -> 0.9259259259
C138: Итоговый дисконт-фактор | H138: =PRODUCT($F137:H137)/H137^(H133/2) -> 0.9622504486 | I138: =PRODUCT($F137:I137)/I137^(I133/2) -> 0.8909726376 | J138: =PRODUCT($F137:J137)/J137^(J133/2) -> 0.8249746645 | K138: =PRODUCT($F137:K137)/K137^(K133/2) -> 0.7638654301 | L138: =PRODUCT($F137:L137)/L137^(L133/2) -> 0.7072828056 | M138: =PRODUCT($F137:M137)/M137^(M133/2) -> 0.6548914867 | N138: =PRODUCT($F137:N137)/N137^(N133/2) -> 0.6063810062 | O138: =PRODUCT($F137:O137)/O137^(O133/2) -> 0.5614638946 | P138: =PRODUCT($F137:P137)/P137^(P133/2) -> 0.5198739765 | Q138: =PRODUCT($F137:Q137)/Q137^(Q133/2) -> 0.4813647931 | R138: =PRODUCT($F137:R137)/R137^(R133/2) -> 0.4457081417 | S138: =PRODUCT($F137:S137)/S137^(S133/2) -> 0.4126927238 | T138: =PRODUCT($F137:T137)/T137^(T133/2) -> 0.3821228924 | U138: =PRODUCT($F137:U137)/U137^(U133/2) -> 0.353817493 | V138: =PRODUCT($F137:V137)/V137^(V133/2) -> 0.3276087898 | W138: =PRODUCT($F137:W137)/W137^(W133/2) -> 0.303341472 | X138: =PRODUCT($F137:X137)/X137^(X133/2) -> 0.2808717334 | Y138: =PRODUCT($F137:Y137)/Y137^(Y133/2) -> 0.2600664198 | Z138: =PRODUCT($F137:Z137)/Z137^(Z133/2) -> 0.2408022405 | AA138: =PRODUCT($F137:AA137)/AA137^(AA133/2) -> 0.2229650375 | AB138: =PRODUCT($F137:AB137)/AB137^(AB133/2) -> 0.2064491088 | AC138: =PRODUCT($F137:AC137)/AC137^(AC133/2) -> 0.1911565823 | AD138: =PRODUCT($F137:AD137)/AD137^(AD133/2) -> 0.1769968354 | AE138: =PRODUCT($F137:AE137)/AE137^(AE133/2) -> 0.1638859587
C139: Совокупный дисконтированный бюджетный денежный поток | D139: тыс. руб. | H139: =IF(H135<>"",0,H131*H138) -> 0 | I139: 0 | J139: 0 | K139: 3063525.701 | L139: 2915195.469 | M139: 2767239.306 | N139: 2622052.529 | O139: 2482964.805 | P139: 2345476.925 | Q139: =IF(Q135<>"",0,Q131*Q138) -> 2212152.575 | R139: 2083454.094 | S139: 1958615.154 | T139: 1837890.601 | U139: 1721259.383 | V139: 1608777.265 | W139: 1500425.087 | X139: =IF(X135<>"",0,X131*X138) -> 1396585.901 | Y139: 1299565.535 | Z139: 1216330.527 | AA139: 1131115.759 | AB139: 1051517.254 | AC139: 977171.248 | AD139: 907737.6677 | AE139: =IF(AE135<>"",0,AE131*AE138) -> 0
C140: Дисконтированная терминальная стоимость с учетом проекта | D140: тыс. руб. | AE140: =AE136*AE138 -> 20973480.06
C141: Итого приведенный бюджетный эффект (NPV бюдж) | D141: тыс. руб. | F141: =SUM(F139:AE139,AE140) -> 58072532.85
C149: **Данные определяются на основании данных бухгалтерского учета
C151: Совокупный бюджетный денежный поток от проекта | D151: тыс. руб. | F151: =F106-F126 -> 0 | G151: =G106-G126 -> 0 | H151: 0 | I151: 0 | J151: 0 | K151: 4010556.808 | L151: 4121682.933 | M151: 4225492.867 | N151: 4324100.694 | O151: 4422305.385 | P151: 4511625.953 | Q151: 4595584.485 | R151: 4674480.672 | S151: 4745940.601 | T151: 4809684.626 | U151: 4864822.733 | V151: 4910665.754 | W151: 4946323.615 | X151: 4972326.28 | Y151: 4997052.431 | Z151: 5051159.51 | AA151: 5073063.346 | AB151: 5093348.475 | AC151: 5111889.094 | AD151: 5128553.093 | AE151: 5119042.59
C152: Длина периода | D152: год | F152: 1 | G152: 1 | H152: 1 | I152: 1 | J152: 1 | K152: 1 | L152: 1 | M152: 1 | N152: 1 | O152: 1 | P152: 1 | Q152: 1 | R152: 1 | S152: 1 | T152: 1 | U152: 1 | V152: 1 | W152: 1 | X152: 1 | Y152: 1 | Z152: 1 | AA152: 1 | AB152: 1 | AC152: 1 | AD152: 1 | AE152: 1
C153: Ставка дисконтирования | D153: % | F153: ='Дисконтированные потоки'!I7 -> 0.093582 | G153: ='Дисконтированные потоки'!J7 -> 0.06833701767 | H153: ='Дисконтированные потоки'!K7 -> 0.06092155726 | I153: ='Дисконтированные потоки'!L7 -> 0.05220381689 | J153: ='Дисконтированные потоки'!M7 -> 0.04816599116 | K153: ='Дисконтированные потоки'!N7 -> 0.0504367916 | L153: ='Дисконтированные потоки'!O7 -> 0.05270759204 | M153: ='Дисконтированные потоки'!P7 -> 0.05497839248 | N153: ='Дисконтированные потоки'!Q7 -> 0.05724919292 | O153: ='Дисконтированные потоки'!R7 -> 0.05951999337 | P153: ='Дисконтированные потоки'!S7 -> 0.06179079381 | Q153: ='Дисконтированные потоки'!T7 -> 0.06406159425 | R153: ='Дисконтированные потоки'!U7 -> 0.06633239469 | S153: ='Дисконтированные потоки'!V7 -> 0.06860319514 | T153: ='Дисконтированные потоки'!W7 -> 0.07087399558 | U153: ='Дисконтированные потоки'!X7 -> 0.07314479602 | V153: ='Дисконтированные потоки'!Y7 -> 0.07541559646 | W153: ='Дисконтированные потоки'!Z7 -> 0.0776863969 | X153: ='Дисконтированные потоки'!AA7 -> 0.07995719735 | Y153: ='Дисконтированные потоки'!AB7 -> 0.08222799779 | Z153: ='Дисконтированные потоки'!AC7 -> 0.08449879823 | AA153: ='Дисконтированные потоки'!AD7 -> 0.08676959867 | AB153: ='Дисконтированные потоки'!AE7 -> 0.08904039912 | AC153: ='Дисконтированные потоки'!AF7 -> 0.09131119956 | AD153: ='Дисконтированные потоки'!AG7 -> 0.093582 | AE153: ='Дисконтированные потоки'!AH7 -> 0.093582
C154: Темп роста терминального периода | D154: % | AE154: 0.04
C155: Терминальная стоимость от проекта | D155: тыс. руб. | AE155: =AE151/(AE153-AE154) -> 95536609.12
C156: Дисконт-фактор по годам | H156: =1/(1+H153)^H152 -> 0.9425767562 | I156: =1/(1+I153)^I152 -> 0.9503862122 | J156: 0.9540473631 | K156: 0.9519849343 | L156: 0.9499314031 | M156: 0.9478867123 | N156: 0.9458508048 | O156: 0.9438236242 | P156: 0.9418051144 | Q156: 0.9397952199 | R156: 0.9377938858 | S156: 0.9358010574 | T156: 0.9338166807 | U156: 0.9318407019 | V156: 0.9298730679 | W156: 0.927913726 | X156: 0.9259626238 | Y156: 0.9240197094 | Z156: 0.9220849314 | AA156: 0.9201582389 | AB156: 0.9182395812 | AC156: 0.9163289082 | AD156: 0.9144261701 | AE156: 0.9144261701
C157: Итоговый дисконт-фактор | H157: =PRODUCT($F156:H156)/H156^(H152/2) -> 0.9708639226 | I157: =PRODUCT($F156:I156)/I156^(I152/2) -> 0.9188969065 | J157: =PRODUCT($F156:J156)/J156^(J152/2) -> 0.8749874437 | K157: =PRODUCT($F156:K156)/K156^(K152/2) -> 0.8338766756 | L157: =PRODUCT($F156:L156)/L156^(L152/2) -> 0.7929813741 | M157: =PRODUCT($F156:M156)/M156^(M152/2) -> 0.7524667717 | N157: =PRODUCT($F156:N156)/N156^(N152/2) -> 0.7124868663 | O157: =PRODUCT($F156:O156)/O156^(O152/2) -> 0.6731837187 | P157: =PRODUCT($F156:P156)/P156^(P152/2) -> 0.6346869195 | Q157: =PRODUCT($F156:Q156)/Q156^(Q152/2) -> 0.5971132193 | R157: =PRODUCT($F156:R156)/R156^(R152/2) -> 0.5605663193 | S157: =PRODUCT($F156:S156)/S156^(S152/2) -> 0.5251368136 | T157: =PRODUCT($F156:T156)/T156^(T152/2) -> 0.4909022743 | U157: =PRODUCT($F156:U156)/U156^(U152/2) -> 0.4579274692 | V157: =PRODUCT($F156:V156)/V156^(V152/2) -> 0.4262646995 | W157: =PRODUCT($F156:W156)/W156^(W152/2) -> 0.3959542445 | X157: =PRODUCT($F156:X156)/X156^(X152/2) -> 0.3670249014 | Y157: =PRODUCT($F156:Y156)/Y156^(Y152/2) -> 0.3394946045 | Z157: =PRODUCT($F156:Z156)/Z156^(Z152/2) -> 0.3133711104 | AA157: =PRODUCT($F156:AA156)/AA156^(AA152/2) -> 0.2886527361 | AB157: =PRODUCT($F156:AB156)/AB156^(AB152/2) -> 0.2653291359 | AC157: =PRODUCT($F156:AC156)/AC156^(AC152/2) -> 0.243382104 | AD157: =PRODUCT($F156:AD156)/AD156^(AD152/2) -> 0.2227863911 | AE157: =PRODUCT($F156:AE156)/AE156^(AE152/2) -> 0.2037217064
C158: Совокупный дисконтированный бюджетный денежный поток | D158: тыс. руб. | E158: =IF(E154<>"",0,E151*E157) -> 0 | F158: 0 | G158: 0 | H158: 0 | I158: 0 | J158: 0 | K158: =IF(K154<>"",0,K151*K157) -> 3344309.778 | L158: =IF(L154<>"",0,L151*L157) -> 3268417.796 | M158: 3179542.977 | N158: 3080864.953 | O158: 2977023.985 | P158: 2863469.978 | Q158: 2744084.247 | R158: 2620356.425 | S158: 2492268.125 | T158: 2361085.122 | U158: 2227735.962 | V158: 2093243.462 | W158: 1958517.83 | X158: 1824967.563 | Y158: 1696472.339 | Z158: 1582887.464 | AA158: 1464353.615 | AB158: 1351413.75 | AC158: 1244142.323 | AD158: 1142571.835 | AE158: 0
C159: Дисконтированная терминальная стоимость с учетом проекта | D159: тыс. руб. | AE159: =AE155*AE157 -> 19462881.03
C160: Справочно. Бюджетный эффект WACC | D160: тыс. руб. | F160: =SUM(F158:AE158,AE159) -> 64980610.56
C162: 3. Оценка социально-экономических эффектов от реализации проекта
C164: Оценка эффекта в области занятости
C165: Среднесписочная численность работников | D165: чел. | F165: =IF('Фонд оплаты труда'!C44<=0,0,'Фонд оплаты труда'!$B$1) -> 0 | G165: =IF('Фонд оплаты труда'!D44<=0,0,'Фонд оплаты труда'!$B$1) -> 0 | H165: =IF('Фонд оплаты труда'!E44<=0,0,'Фонд оплаты труда'!$B$1) -> 0 | I165: =IF('Фонд оплаты труда'!F44<=0,0,'Фонд оплаты труда'!$B$1) -> 0 | J165: =IF('Фонд оплаты труда'!G44<=0,0,'Фонд оплаты труда'!$B$1) -> 0 | K165: =IF('Фонд оплаты труда'!H44<=0,0,'Фонд оплаты труда'!$B$1) -> 850 | L165: =IF('Фонд оплаты труда'!I44<=0,0,'Фонд оплаты труда'!$B$1) -> 850 | M165: =IF('Фонд оплаты труда'!J44<=0,0,'Фонд оплаты труда'!$B$1) -> 850 | N165: =IF('Фонд оплаты труда'!K44<=0,0,'Фонд оплаты труда'!$B$1) -> 850 | O165: =IF('Фонд оплаты труда'!L44<=0,0,'Фонд оплаты труда'!$B$1) -> 850 | P165: =IF('Фонд оплаты труда'!M44<=0,0,'Фонд оплаты труда'!$B$1) -> 850 | Q165: =IF('Фонд оплаты труда'!N44<=0,0,'Фонд оплаты труда'!$B$1) -> 850 | R165: =IF('Фонд оплаты труда'!O44<=0,0,'Фонд оплаты труда'!$B$1) -> 850 | S165: =IF('Фонд оплаты труда'!P44<=0,0,'Фонд оплаты труда'!$B$1) -> 850 | T165: =IF('Фонд оплаты труда'!Q44<=0,0,'Фонд оплаты труда'!$B$1) -> 850 | U165: =IF('Фонд оплаты труда'!R44<=0,0,'Фонд оплаты труда'!$B$1) -> 850 | V165: =IF('Фонд оплаты труда'!S44<=0,0,'Фонд оплаты труда'!$B$1) -> 850 | W165: =IF('Фонд оплаты труда'!T44<=0,0,'Фонд оплаты труда'!$B$1) -> 850 | X165: =IF('Фонд оплаты труда'!U44<=0,0,'Фонд оплаты труда'!$B$1) -> 850 | Y165: =IF('Фонд оплаты труда'!V44<=0,0,'Фонд оплаты труда'!$B$1) -> 850 | Z165: =IF('Фонд оплаты труда'!W44<=0,0,'Фонд оплаты труда'!$B$1) -> 850 | AA165: =IF('Фонд оплаты труда'!X44<=0,0,'Фонд оплаты труда'!$B$1) -> 850 | AB165: =IF('Фонд оплаты труда'!Y44<=0,0,'Фонд оплаты труда'!$B$1) -> 850 | AC165: =IF('Фонд оплаты труда'!Z44<=0,0,'Фонд оплаты труда'!$B$1) -> 850 | AD165: =IF('Фонд оплаты труда'!AA44<=0,0,'Фонд оплаты труда'!$B$1) -> 850 | AE165: =IF('Фонд оплаты труда'!AB44<=0,0,'Фонд оплаты труда'!$B$1) -> 850
C166: Фонд оплаты труда | D166: тыс. руб. | F166: ='Фонд оплаты труда'!C44 -> 0 | G166: ='Фонд оплаты труда'!D44 -> 0 | H166: ='Фонд оплаты труда'!E44 -> 0 | I166: ='Фонд оплаты труда'!F44 -> 0 | J166: ='Фонд оплаты труда'!G44 -> 0 | K166: ='Фонд оплаты труда'!H44 -> 635173.8441 | L166: ='Фонд оплаты труда'!I44 -> 660580.7979 | M166: ='Фонд оплаты труда'!J44 -> 687004.0298 | N166: ='Фонд оплаты труда'!K44 -> 714484.191 | O166: ='Фонд оплаты труда'!L44 -> 743063.5587 | P166: ='Фонд оплаты труда'!M44 -> 772786.101 | Q166: ='Фонд оплаты труда'!N44 -> 803697.545 | R166: ='Фонд оплаты труда'!O44 -> 835845.4468 | S166: ='Фонд оплаты труда'!P44 -> 869279.2647 | T166: ='Фонд оплаты труда'!Q44 -> 904050.4353 | U166: ='Фонд оплаты труда'!R44 -> 940212.4527 | V166: ='Фонд оплаты труда'!S44 -> 977820.9508 | W166: ='Фонд оплаты труда'!T44 -> 1016933.789 | X166: ='Фонд оплаты труда'!U44 -> 1057611.14 | Y166: ='Фонд оплаты труда'!V44 -> 1099915.586 | Z166: ='Фонд оплаты труда'!W44 -> 1143912.209 | AA166: ='Фонд оплаты труда'!X44 -> 1189668.698 | AB166: ='Фонд оплаты труда'!Y44 -> 1237255.446 | AC166: ='Фонд оплаты труда'!Z44 -> 1286745.664 | AD166: ='Фонд оплаты труда'!AA44 -> 1338215.49 | AE166: ='Фонд оплаты труда'!AB44 -> 1391744.11
C168: Численность занятых (на момент окончания прогнозного периода) | D168: чел | F168: =W165 -> 850

Sheet Результаты 2
B1: Не изменять | F1: Ввести годы прогнозирования по модели | Z1: Указать год окончание прогнозирования модели или расчёта терминальной стоимости сверх выбранного периода
A2: № | B2: ID | C2: Финансовые показатели (тыс. руб.) | D2: Описание | E2: Всего | F2: 2019 | G2: 2020 | H2: 2021 | I2: 2022 | J2: 2023 | K2: 2024 | L2: 2025 | M2: 2026 | N2: 2027 | O2: 2028 | P2: 2029 | Q2: 2030 | R2: 2031 | S2: 2032 | T2: 2033 | U2: 2034 | V2: 2035 | W2: 2036 | X2: 2037 | Y2: 2038 | Z2: 2039 | AA2: 2040 | AB2: 2041 | AC2: 2042 | AD2: 2043 | AE2: 2044
A3: =ROW()-ROW('Результаты 2'!$A$2:$Z$2) -> 1 | B3: 1 | C3: Операционные показатели (без мер)
A4: =ROW()-ROW('Результаты 2'!$A$2:$Z$2) -> 2 | B4: 2 | C4: Выручка | E4: =SUM('Результаты 2'!$F4:$Z4) -> 538850469.8 | F4: =ОПУ!I36 -> 0 | G4: =ОПУ!J36 -> 0 | H4: =ОПУ!K36 -> 0 | I4: =ОПУ!L36 -> 0 | J4: =ОПУ!M36 -> 0 | K4: =ОПУ!N36 -> 28988201.48 | L4: =ОПУ!O36 -> 29992215.6 | M4: =ОПУ!P36 -> 30970633.78 | N4: =ОПУ!Q36 -> 31938764 | O4: =ОПУ!R36 -> 32916482.01 | P4: =ОПУ!S36 -> 33878403.4 | Q4: =ОПУ!T36 -> 34826688.22 | R4: =ОПУ!U36 -> 35758600.91 | S4: =ОПУ!V36 -> 36671386.49 | T4: =ОПУ!W36 -> 37562283.58 | U4: =ОПУ!X36 -> 38428537.81 | V4: =ОПУ!Y36 -> 39267415.61 | W4: =ОПУ!Z36 -> 40076218.21 | X4: =ОПУ!AA36 -> 40852295.78 | Y4: =ОПУ!AH36 -> 46722342.94
A5: =ROW()-ROW('Результаты 2'!$A$2:$Z$2) -> 3 | B5: 3 | C5: EBITDA | E5: =SUM('Результаты 2'!$F5:$Z5) -> 313929616.3 | F5: =ОПУ!I60 -> 0 | G5: =ОПУ!J60 -> 0 | H5: =ОПУ!K60 -> 0 | I5: =ОПУ!L60 -> 0 | J5: =ОПУ!M60 -> 0 | K5: =ОПУ!N60 -> 16823178.73 | L5: =ОПУ!O60 -> 17551204.57 | M5: =ОПУ!P60 -> 18176942.54 | N5: =ОПУ!Q60 -> 18836264.02 | O5: =ОПУ!R60 -> 19489440.49 | P5: =ОПУ!S60 -> 20034104.54 | Q5: =ОПУ!T60 -> 20595206.24 | R5: =ОПУ!U60 -> 21143411.46 | S5: =ОПУ!V60 -> 21653487.05 | T5: =ОПУ!W60 -> 22123957.46 | U5: =ОПУ!X60 -> 22550292.19 | V5: =ОПУ!Y60 -> 22928961.74 | W5: =ОПУ!Z60 -> 23255428.77 | X5: =ОПУ!AA60 -> 23532247.62 | Y5: =ОПУ!AH60 -> 25235488.91
A6: =ROW()-ROW('Результаты 2'!$A$2:$Z$2) -> 4 | B6: 4 | C6: Доходность по EBITDA (%) | E6: =IFERROR(E5/E4,0) -> 0.5825913383 | F6: =IFERROR(F5/F4,0) -> 0 | G6: =IFERROR(G5/G4,0) -> 0 | H6: 0 | I6: 0 | J6: 0 | K6: 0.5803457224 | L6: 0.5851919981 | M6: 0.5869089626 | N6: 0.5897618335 | O6: 0.5920875895 | P6: 0.5913532674 | Q6: 0.5913627536 | R6: 0.5912818432 | S6: 0.5904736397 | T6: 0.5889939417 | U6: 0.5868110907 | V6: 0.583918279 | W6: 0.5802800216 | X6: 0.57603244 | Y6: 0.5401160842 | Z6: 0
A7: =ROW()-ROW('Результаты 2'!$A$2:$Z$2) -> 5 | B7: 5 | C7: Чистая прибыль | E7: =SUM('Результаты 2'!$F7:$Z7) -> 171035198.4 | F7: =ОПУ!I80 -> 0 | G7: =ОПУ!J80 -> 0 | H7: =ОПУ!K80 -> 0 | I7: =ОПУ!L80 -> 0 | J7: =ОПУ!M80 -> 0 | K7: =ОПУ!N80 -> 7113131.655 | L7: =ОПУ!O80 -> 7909381.108 | M7: =ОПУ!P80 -> 8426532.071 | N7: =ОПУ!Q80 -> 9157571.903 | O7: =ОПУ!R80 -> 9881604.526 | P7: =ОПУ!S80 -> 10263280.54 | Q7: =ОПУ!T80 -> 10814453.4 | R7: =ОПУ!U80 -> 11412374.98 | S7: =ОПУ!V80 -> 11980624.6 | T7: =ОПУ!W80 -> 12518021.8 | U7: =ОПУ!X80 -> 13020942.19 | V7: =ОПУ!Y80 -> 13486562.17 | W7: =ОПУ!Z80 -> 13911251.86 | X7: =ОПУ!AA80 -> 14297054.73 | Y7: =ОПУ!AH80 -> 16842410.88
A8: =ROW()-ROW('Результаты 2'!$A$2:$Z$2) -> 6 | B8: 6 | C8: Инвестиционный поток (без мер)
A9: =ROW()-ROW('Результаты 2'!$A$2:$Z$2) -> 7 | B9: 7 | C9: Капитальные затраты | D9: Капитальные затраты, всего по проекту; Без НДС | E9: =SUM('Результаты 2'!$F9:$Z9) ->  | F9: =ДДС!I25 -> 577955.2 | G9: =ДДС!J25 -> 9648345.6 | H9: =ДДС!K25 -> 25416000 | I9: =ДДС!L25 -> 25581600 | J9: =ДДС!M25 -> 31046760 | K9: =ДДС!N25 -> 0 | L9: =ДДС!O25 -> 0 | M9: =ДДС!P25 -> 0 | N9: =ДДС!Q25 -> 0 | O9: =ДДС!R25 -> 0 | P9: =ДДС!S25 -> 0 | Q9: =ДДС!T25 -> 0 | R9: =ДДС!U25 -> 0 | S9: =ДДС!V25 -> 0 | T9: =ДДС!W25 -> 0 | U9: =ДДС!X25 -> 0 | V9: =ДДС!Y25 -> 0 | W9: =ДДС!Z25 -> 0 | X9: =ДДС!AH25 -> 0 | Y9: =ДДС!#REF! -> 
A10: =ROW()-ROW('Результаты 2'!$A$2:$Z$2) -> 8 | B10: 8 | C10: -на инф-ру по проекту | D10: в том числе затраты на инфраструктуру, учтённую в модели: транспортную, энергетическую, социальную; Без НДС | E10: =SUM('Результаты 2'!$F10:$Z10) ->  | F10: =ДДС!I26 -> 0 | G10: =ДДС!J26 -> 0 | H10: =ДДС!K26 -> 0 | I10: =ДДС!L26 -> 0 | J10: =ДДС!M26 -> 0 | K10: =ДДС!N26 -> 0 | L10: =ДДС!O26 -> 0 | M10: =ДДС!P26 -> 0 | N10: =ДДС!Q26 -> 0 | O10: =ДДС!R26 -> 0 | P10: =ДДС!S26 -> 0 | Q10: =ДДС!T26 -> 0 | R10: =ДДС!U26 -> 0 | S10: =ДДС!V26 -> 0 | T10: =ДДС!W26 -> 0 | U10: =ДДС!X26 -> 0 | V10: =ДДС!Y26 -> 0 | W10: =ДДС!Z26 -> 0 | X10: =ДДС!AH26 -> 0 | Y10: =ДДС!#REF! -> 
A11: =ROW()-ROW('Результаты 2'!$A$2:$Z$2) -> 9 | B11: 12 | C11: -на инф-ру за периметром проекта | D11: в том числе затраты на инфраструктуру, НЕ учтённую в модели: транспортную, энергетическую, социальную; Без НДС (учтены в инф-ру проекта) | E11: =SUM('Результаты 2'!$F11:$Z11) ->  | F11: =ДДС!I27 -> 0 | G11: =ДДС!J27 -> 0 | H11: =ДДС!K27 -> 0 | I11: =ДДС!L27 -> 0 | J11: =ДДС!M27 -> 0 | K11: =ДДС!N27 -> 0 | L11: =ДДС!O27 -> 0 | M11: =ДДС!P27 -> 0 | N11: =ДДС!Q27 -> 0 | O11: =ДДС!R27 -> 0 | P11: =ДДС!S27 -> 0 | Q11: =ДДС!T27 -> 0 | R11: =ДДС!U27 -> 0 | S11: =ДДС!V27 -> 0 | T11: =ДДС!W27 -> 0 | U11: =ДДС!X27 -> 0 | V11: =ДДС!Y27 -> 0 | W11: =ДДС!Z27 -> 0 | X11: =ДДС!AH27 -> 0 | Y11: =ДДС!#REF! -> 
A12: =ROW()-ROW('Результаты 2'!$A$2:$Z$2) -> 10 | B12: 16 | C12: Финансовый поток (приход) (без мер) | E12: =SUM('Результаты 2'!$F12:$Z12) ->  | F12: =SUM(F13:F15) -> 586027.2 | G12: =SUM(G13:G15) -> 9780153.6 | H12: 25754880 | I12: 25923600 | J12: 31452600 | K12: 0 | L12: 0 | M12: 0 | N12: 0 | O12: 0 | P12: 0 | Q12: 0 | R12: 0 | S12: 0 | T12: 0 | U12: 0 | V12: 0 | W12: 0 | X12: 0 | Z12: 0
A13: =ROW()-ROW('Результаты 2'!$A$2:$Z$2) -> 11 | B13: 17 | C13: Собственные средства | D13: Вклад в акционерный капитал | E13: =SUM('Результаты 2'!$F13:$Z13) ->  | F13: =ДДС!I38 -> 586027.2 | G13: =ДДС!J38 -> 4890076.8 | H13: =ДДС!K38 -> 8584960 | I13: =ДДС!L38 -> 0 | J13: =ДДС!M38 -> 0 | K13: =ДДС!N38 -> 0 | L13: =ДДС!O38 -> 0 | M13: =ДДС!P38 -> 0 | N13: =ДДС!Q38 -> 0 | O13: =ДДС!R38 -> 0 | P13: =ДДС!S38 -> 0 | Q13: =ДДС!T38 -> 0 | R13: =ДДС!U38 -> 0 | S13: =ДДС!V38 -> 0 | T13: =ДДС!W38 -> 0 | U13: =ДДС!X38 -> 0 | V13: =ДДС!Y38 -> 0 | W13: =ДДС!Z38 -> 0 | X13: =ДДС!AH38 -> 0 | Y13: =ДДС!#REF! -> 
A14: =ROW()-ROW('Результаты 2'!$A$2:$Z$2) -> 12 | B14: 18 | C14: Привлечение заёмных средств | E14: =SUM('Результаты 2'!$F14:$Z14) ->  | F14: =ДДС!I39 -> 0 | G14: =ДДС!J39 -> 4890076.8 | H14: =ДДС!K39 -> 17169920 | I14: =ДДС!L39 -> 25923600 | J14: =ДДС!M39 -> 31452600 | K14: =ДДС!N39 -> 0 | L14: =ДДС!O39 -> 0 | M14: =ДДС!P39 -> 0 | N14: =ДДС!Q39 -> 0 | O14: =ДДС!R39 -> 0 | P14: =ДДС!S39 -> 0 | Q14: =ДДС!T39 -> 0 | R14: =ДДС!U39 -> 0 | S14: =ДДС!V39 -> 0 | T14: =ДДС!W39 -> 0 | U14: =ДДС!X39 -> 0 | V14: =ДДС!Y39 -> 0 | W14: =ДДС!Z39 -> 0 | X14: =ДДС!AH39 -> 0 | Y14: =ДДС!#REF! -> 
A15: =ROW()-ROW('Результаты 2'!$A$2:$Z$2) -> 13 | B15: 19 | C15: Государственные инвестиции | D15: Кап.грант, единоразовые субсидии, вхождение в капитал со стороны гос-ва | E15: =SUM('Результаты 2'!$F15:$Z15) -> 0 | F15: 0 | G15: 0 | H15: 0 | I15: 0 | J15: 0 | K15: 0 | L15: 0 | M15: 0 | N15: 0 | O15: 0 | P15: 0 | Q15: 0 | R15: 0 | S15: 0 | T15: 0 | U15: 0 | V15: 0 | W15: 0 | X15: 0 | Y15: 0
A16: =ROW()-ROW('Результаты 2'!$A$2:$Z$2) -> 14 | B16: 20 | C16: Финансовый поток (погашение) | E16: =SUM('Результаты 2'!$F16:$Z16) ->  | F16: =SUM(F17:F18) -> 0 | G16: =SUM(G17:G18) -> 0 | H16: 0 | I16: 0 | J16: 0 | K16: 8065202.144 | L16: 7796830.21 | M16: 7779358.285 | N16: 7524026.708 | O16: 7271309.144 | P16: 7344143.177 | Q16: 7217975.618 | R16: 7019118.219 | S16: 6819221.155 | T16: 6618284.427 | U16: 6416308.036 | V16: 6213291.98 | W16: 6009236.26 | X16: 4460158.56 | Z16: 0
A17: =ROW()-ROW('Результаты 2'!$A$2:$Z$2) -> 15 | B17: 21 | C17: Погашение заёмных средств | E17: =SUM('Результаты 2'!$F17:$Z17) ->  | F17: =ДДС!I40 -> 0 | G17: =ДДС!J40 -> 0 | H17: =ДДС!K40 -> 0 | I17: =ДДС!L40 -> 0 | J17: =ДДС!M40 -> 0 | K17: =ДДС!N40 -> 4087958.848 | L17: =ДДС!O40 -> 4054689.6 | M17: =ДДС!P40 -> 4153606.203 | N17: =ДДС!Q40 -> 4127466.08 | O17: =ДДС!R40 -> 4101325.957 | P17: =ДДС!S40 -> 4262622.4 | Q17: =ДДС!T40 -> 4314605.6 | R17: =ДДС!U40 -> 4325002.24 | S17: =ДДС!V40 -> 4335398.88 | T17: =ДДС!W40 -> 4345795.52 | U17: =ДДС!X40 -> 4356192.16 | V17: =ДДС!Y40 -> 4366588.8 | W17: =ДДС!Z40 -> 4376985.44 | X17: =ДДС!AH40 -> 4460158.56 | Y17: =ДДС!#REF! -> 
A18: =ROW()-ROW('Результаты 2'!$A$2:$Z$2) -> 16 | B18: 22 | C18: Оплата % по кредиту | E18: =SUM('Результаты 2'!$F18:$Z18) ->  | F18: =ДДС!I41 -> 0 | G18: =ДДС!J41 -> 0 | H18: =ДДС!K41 -> 0 | I18: =ДДС!L41 -> 0 | J18: =ДДС!M41 -> 0 | K18: =ДДС!N41 -> 3977243.296 | L18: =ДДС!O41 -> 3742140.61 | M18: =ДДС!P41 -> 3625752.082 | N18: =ДДС!Q41 -> 3396560.628 | O18: =ДДС!R41 -> 3169983.187 | P18: =ДДС!S41 -> 3081520.777 | Q18: =ДДС!T41 -> 2903370.018 | R18: =ДДС!U41 -> 2694115.979 | S18: =ДДС!V41 -> 2483822.275 | T18: =ДДС!W41 -> 2272488.907 | U18: =ДДС!X41 -> 2060115.876 | V18: =ДДС!Y41 -> 1846703.18 | W18: =ДДС!Z41 -> 1632250.82 | X18: =ДДС!AH41 -> 0 | Y18: =ДДС!#REF! -> 
A19: =ROW()-ROW('Результаты 2'!$A$2:$Z$2) -> 17 | B19: 23 | C19: Начисление % по кредиту | D19: В том числе с учётом капитализации процентов | E19: =SUM('Результаты 2'!$F19:$Z19) -> -38302826.43 | F19: =ОПУ!I68 -> 0 | G19: =ОПУ!J68 -> 0 | H19: =ОПУ!K68 -> 0 | I19: =ОПУ!L68 -> 0 | J19: =ОПУ!M68 -> 0 | K19: =ОПУ!N68 -> -3977243.296 | L19: =ОПУ!O68 -> -3742140.61 | M19: =ОПУ!P68 -> -3625752.082 | N19: =ОПУ!Q68 -> -3396560.628 | O19: =ОПУ!R68 -> -3169983.187 | P19: =ОПУ!S68 -> -3081520.777 | Q19: =ОПУ!T68 -> -2903370.018 | R19: =ОПУ!U68 -> -2694115.979 | S19: =ОПУ!V68 -> -2483822.275 | T19: =ОПУ!W68 -> -2272488.907 | U19: =ОПУ!X68 -> -2060115.876 | V19: =ОПУ!Y68 -> -1846703.18 | W19: =ОПУ!Z68 -> -1632250.82 | X19: =ОПУ!AA68 -> -1416758.797 | Y19: =ОПУ!AH68 -> 0
A20: =ROW()-ROW('Результаты 2'!$A$2:$Z$2) -> 18 | B20: 24 | C20: Финансовые меры поддержки | E20: =SUM('Результаты 2'!$F20:$Z20) ->  | F20: =SUM(F21:F22) -> 0 | G20: =SUM(G21:G22) -> 0 | H20: 0 | I20: 0 | J20: 0 | K20: 0 | L20: 0 | M20: 0 | N20: 0 | O20: 0 | P20: 0 | Q20: 0 | R20: 0 | S20: 0 | T20: 0 | U20: 0 | V20: 0 | W20: 0 | X20: 0 | Z20: 0
A21: =ROW()-ROW('Результаты 2'!$A$2:$Z$2) -> 19 | B21: 25 | C21: Субсидии на % по кредиту | D21: Государственная субсидия, возмещение затрат по процентам | E21: =SUM('Результаты 2'!$F21:$Z21) ->  | F21: =ДДС!I36 -> 0 | G21: =ДДС!J36 -> 0 | H21: =ДДС!K36 -> 0 | I21: =ДДС!L36 -> 0 | J21: =ДДС!M36 -> 0 | K21: =ДДС!N36 -> 0 | L21: =ДДС!O36 -> 0 | M21: =ДДС!P36 -> 0 | N21: =ДДС!Q36 -> 0 | O21: =ДДС!R36 -> 0 | P21: =ДДС!S36 -> 0 | Q21: =ДДС!T36 -> 0 | R21: =ДДС!U36 -> 0 | S21: =ДДС!V36 -> 0 | T21: =ДДС!W36 -> 0 | U21: =ДДС!X36 -> 0 | V21: =ДДС!Y36 -> 0 | W21: =ДДС!Z36 -> 0 | X21: =ДДС!AH36 -> 0 | Y21: =ДДС!#REF! -> 
A22: =ROW()-ROW('Результаты 2'!$A$2:$Z$2) -> 20 | B22: 26 | C22: Прочие меры поддержки | D22: Неналоговые меры поддержки по проекту | E22: =SUM('Результаты 2'!$F22:$Z22) ->  | F22: =ДДС!I37 -> 0 | G22: =ДДС!J37 -> 0 | H22: =ДДС!K37 -> 0 | I22: =ДДС!L37 -> 0 | J22: =ДДС!M37 -> 0 | K22: =ДДС!N37 -> 0 | L22: =ДДС!O37 -> 0 | M22: =ДДС!P37 -> 0 | N22: =ДДС!Q37 -> 0 | O22: =ДДС!R37 -> 0 | P22: =ДДС!S37 -> 0 | Q22: =ДДС!T37 -> 0 | R22: =ДДС!U37 -> 0 | S22: =ДДС!V37 -> 0 | T22: =ДДС!W37 -> 0 | U22: =ДДС!X37 -> 0 | V22: =ДДС!Y37 -> 0 | W22: =ДДС!Z37 -> 0 | X22: =ДДС!AH37 -> 0 | Y22: =ДДС!#REF! -> 
A23: =ROW()-ROW('Результаты 2'!$A$2:$Z$2) -> 21 | B23: 27 | C23: Налоговые поступления без мер | D23: Налоговые поступления, рассчитанные без учёта мер гос. поддержки | E23: =SUM('Результаты 2'!$F23:$Z23) ->  | F23: =SUBTOTAL(9,F24:F36) -> 0 | G23: =SUBTOTAL(9,G24:G36) -> 0 | H23: 0 | I23: 0 | J23: 0 | K23: 3877303.554 | L23: 3983099.549 | M23: 4081366.148 | N23: 4174208.905 | O23: 4266417.926 | P23: 4349502.995 | Q23: 4823478.5 | R23: 4827060.301 | T23: 0 | U23: 0 | V23: 0 | W23: 0 | X23: 4 | Y23: 8 | Z23: 0
A24: =ROW()-ROW('Результаты 2'!$A$2:$Z$2) -> 22 | B24: 28 | C24: Федеральный бюджет | E24: =SUM('Результаты 2'!$F24:$Z24) ->  | F24: =SUBTOTAL(9,F25:F29) -> 0 | G24: =SUBTOTAL(9,G25:G29) -> 0 | H24: 0 | I24: 0 | J24: 0 | K24: 373439.4119 | L24: 415242.5082 | M24: 442392.9337 | N24: 480772.5249 | O24: 518784.2376 | P24: 538822.2282 | Q24: 816009.5776 | R24: 884226.5713 | T24: 0 | U24: 0 | V24: =SUBTOTAL(9,V25:V29) -> 0 | W24: 0 | X24: 0 | Y24: 0 | Z24: 0
A25: =ROW()-ROW('Результаты 2'!$A$2:$Z$2) -> 23 | B25: 29 | C25: НДС | E25: =SUM('Результаты 2'!$F25:$Z25) ->  | F25: =Результаты_1!F109 -> 0 | G25: =Результаты_1!G109 -> 0 | H25: =Результаты_1!H109 -> 0 | I25: =Результаты_1!I109 -> 0 | J25: =Результаты_1!J109 -> 0 | K25: =Результаты_1!K109 -> 0 | L25: =Результаты_1!L109 -> 0 | M25: =Результаты_1!M109 -> 0 | N25: =Результаты_1!N109 -> 0 | O25: =Результаты_1!O109 -> 0 | P25: =Результаты_1!P109 -> 0 | Q25: =Результаты_1!AA109 -> 0 | R25: =Результаты_1!AE109 -> 0 | S25: =Результаты_1!#REF! ->  | T25: =Результаты_1!AF109 -> 0 | U25: =Результаты_1!AH109 -> 0 | V25: =Результаты_1!AI109 -> 0 | W25: =Результаты_1!AJ109 -> 0 | X25: =Результаты_1!AK109 -> 0 | Y25: =Результаты_1!AL109 -> 0
A26: =ROW()-ROW('Результаты 2'!$A$2:$Z$2) -> 24 | B26: 30 | C26: Акцизы | E26: =SUM('Результаты 2'!$F26:$Z26) ->  | F26: =Результаты_1!F110 -> 0 | G26: =Результаты_1!G110 -> 0 | H26: =Результаты_1!H110 -> 0 | I26: =Результаты_1!I110 -> 0 | J26: =Результаты_1!J110 -> 0 | K26: =Результаты_1!K110 -> 0 | L26: =Результаты_1!L110 -> 0 | M26: =Результаты_1!M110 -> 0 | N26: =Результаты_1!N110 -> 0 | O26: =Результаты_1!O110 -> 0 | P26: =Результаты_1!P110 -> 0 | Q26: =Результаты_1!AA110 -> 0 | R26: =Результаты_1!AE110 -> 0 | S26: =Результаты_1!#REF! ->  | T26: =Результаты_1!AF110 -> 0 | U26: =Результаты_1!AH110 -> 0 | V26: =Результаты_1!AI110 -> 0 | W26: =Результаты_1!AJ110 -> 0 | X26: =Результаты_1!AK110 -> 0 | Y26: =Результаты_1!AL110 -> 0
A27: =ROW()-ROW('Результаты 2'!$A$2:$Z$2) -> 25 | B27: 31 | C27: Налог на прибыль | E27: =SUM('Результаты 2'!$F27:$Z27) ->  | F27: =Результаты_1!F111 -> 0 | G27: =Результаты_1!G111 -> 0 | H27: =Результаты_1!H111 -> 0 | I27: =Результаты_1!I111 -> 0 | J27: =Результаты_1!J111 -> 0 | K27: =Результаты_1!K111 -> 373439.4119 | L27: =Результаты_1!L111 -> 415242.5082 | M27: =Результаты_1!M111 -> 442392.9337 | N27: =Результаты_1!N111 -> 480772.5249 | O27: =Результаты_1!O111 -> 518784.2376 | P27: =Результаты_1!P111 -> 538822.2282 | Q27: =Результаты_1!AA111 -> 816009.5776 | R27: =Результаты_1!AE111 -> 884226.5713 | S27: =Результаты_1!#REF! ->  | T27: =Результаты_1!AF111 -> 0 | U27: =Результаты_1!AH111 -> 0 | V27: =Результаты_1!AI111 -> 0 | W27: =Результаты_1!AJ111 -> 0 | X27: =Результаты_1!AK111 -> 0 | Y27: =Результаты_1!AL111 -> 0
A28: =ROW()-ROW('Результаты 2'!$A$2:$Z$2) -> 26 | B28: 32 | C28: НДПИ | E28: =SUM('Результаты 2'!$F28:$Z28) ->  | F28: =Результаты_1!F112 -> 0 | G28: =Результаты_1!G112 -> 0 | H28: =Результаты_1!H112 -> 0 | I28: =Результаты_1!I112 -> 0 | J28: =Результаты_1!J112 -> 0 | K28: =Результаты_1!K112 -> 0 | L28: =Результаты_1!L112 -> 0 | M28: =Результаты_1!M112 -> 0 | N28: =Результаты_1!N112 -> 0 | O28: =Результаты_1!O112 -> 0 | P28: =Результаты_1!P112 -> 0 | Q28: =Результаты_1!AA112 -> 0 | R28: =Результаты_1!AE112 -> 0 | S28: =Результаты_1!#REF! ->  | T28: =Результаты_1!AF112 -> 0 | U28: =Результаты_1!AH112 -> 0 | V28: =Результаты_1!AI112 -> 0 | W28: =Результаты_1!AJ112 -> 0 | X28: =Результаты_1!AK112 -> 0 | Y28: =Результаты_1!AL112 -> 0
A29: =ROW()-ROW('Результаты 2'!$A$2:$Z$2) -> 27 | B29: 33 | C29: Прочие | E29: =SUM('Результаты 2'!$F29:$Z29) ->  | F29: =Результаты_1!F113 -> 0 | G29: =Результаты_1!G113 -> 0 | H29: =Результаты_1!H113 -> 0 | I29: =Результаты_1!I113 -> 0 | J29: =Результаты_1!J113 -> 0 | K29: =Результаты_1!K113 -> 0 | L29: =Результаты_1!L113 -> 0 | M29: =Результаты_1!M113 -> 0 | N29: =Результаты_1!N113 -> 0 | O29: =Результаты_1!O113 -> 0 | P29: =Результаты_1!P113 -> 0 | Q29: =Результаты_1!AA113 -> 0 | R29: =Результаты_1!AE113 -> 0 | S29: =Результаты_1!#REF! ->  | T29: =Результаты_1!AF113 -> 0 | U29: =Результаты_1!AH113 -> 0 | V29: =Результаты_1!AI113 -> 0 | W29: =Результаты_1!AJ113 -> 0 | X29: =Результаты_1!AK113 -> 0 | Y29: =Результаты_1!AL113 -> 0
A30: =ROW()-ROW('Результаты 2'!$A$2:$Z$2) -> 28 | B30: 34 | C30: Региональный бюджет | E30: =SUM('Результаты 2'!$F30:$Z30) ->  | F30: =SUBTOTAL(9,F31:F35) -> 0 | G30: 0 | H30: 0 | I30: 0 | J30: 0 | K30: 3503864.142 | L30: 3567857.041 | M30: 3638973.214 | N30: 3693436.38 | O30: 3747633.688 | P30: 3810680.767 | Q30: 4007468.922 | R30: 3942833.73 | T30: 0 | U30: 0 | V30: 0 | W30: 0 | X30: 0 | Y30: 0 | Z30: 0
A31: =ROW()-ROW('Результаты 2'!$A$2:$Z$2) -> 29 | B31: 35 | C31: Налог на имущество организаций | E31: =SUM('Результаты 2'!$F31:$Z31) ->  | F31: =Результаты_1!F115 -> 0 | G31: =Результаты_1!G115 -> 0 | H31: =Результаты_1!H115 -> 0 | I31: =Результаты_1!I115 -> 0 | J31: =Результаты_1!J115 -> 0 | K31: =Результаты_1!K115 -> 2041277.563 | L31: =Результаты_1!L115 -> 1945701.472 | M31: =Результаты_1!M115 -> 1912278.218 | N31: =Результаты_1!N115 -> 1819862.821 | O31: =Результаты_1!O115 -> 1728465.561 | P31: =Результаты_1!P115 -> 1713429.579 | Q31: =Результаты_1!AA115 -> 829566.9067 | R31: =Результаты_1!AE115 -> 489935.3888 | S31: =Результаты_1!#REF! ->  | T31: =Результаты_1!AF115 -> 0 | U31: =Результаты_1!AH115 -> 0 | V31: =Результаты_1!AI115 -> 0 | W31: =Результаты_1!AJ115 -> 0 | X31: =Результаты_1!AK115 -> 0 | Y31: =Результаты_1!AL115 -> 0
A32: =ROW()-ROW('Результаты 2'!$A$2:$Z$2) -> 30 | B32: 37 | C32: Налог на прибыль | E32: =SUM('Результаты 2'!$F32:$Z32) ->  | F32: =Результаты_1!F116 -> 0 | G32: =Результаты_1!G116 -> 0 | H32: =Результаты_1!H116 -> 0 | I32: =Результаты_1!I116 -> 0 | J32: =Результаты_1!J116 -> 0 | K32: =Результаты_1!K116 -> 1404843.502 | L32: =Результаты_1!L116 -> 1562102.769 | M32: =Результаты_1!M116 -> 1664240.084 | N32: =Результаты_1!N116 -> 1808620.451 | O32: =Результаты_1!O116 -> 1951616.894 | P32: =Результаты_1!P116 -> 2026997.906 | Q32: =Результаты_1!AA116 -> 3069750.316 | R32: =Результаты_1!AE116 -> 3326376.149 | S32: =Результаты_1!#REF! ->  | T32: =Результаты_1!AF116 -> 0 | U32: =Результаты_1!AH116 -> 0 | V32: =Результаты_1!AI116 -> 0 | W32: =Результаты_1!AJ116 -> 0 | X32: =Результаты_1!AK116 -> 0 | Y32: =Результаты_1!AL116 -> 0
A33: =ROW()-ROW('Результаты 2'!$A$2:$Z$2) -> 31 | B33: 38 | C33: НДФЛ | E33: =SUM('Результаты 2'!$F33:$Z33) ->  | F33: =Результаты_1!F117 -> 0 | G33: =Результаты_1!G117 -> 0 | H33: =Результаты_1!H117 -> 0 | I33: =Результаты_1!I117 -> 0 | J33: =Результаты_1!J117 -> 0 | K33: =Результаты_1!K117 -> 57743.07674 | L33: =Результаты_1!L117 -> 60052.79981 | M33: =Результаты_1!M117 -> 62454.9118 | N33: =Результаты_1!N117 -> 64953.10827 | O33: =Результаты_1!O117 -> 67551.2326 | P33: =Результаты_1!P117 -> 70253.28191 | Q33: =Результаты_1!AA117 -> 108151.6998 | R33: =Результаты_1!AE117 -> 126522.1918 | S33: =Результаты_1!#REF! ->  | T33: =Результаты_1!AF117 -> 0 | U33: =Результаты_1!AH117 -> 0 | V33: =Результаты_1!AI117 -> 0 | W33: =Результаты_1!AJ117 -> 0 | X33: =Результаты_1!AK117 -> 0 | Y33: =Результаты_1!AL117 -> 0
A34: =ROW()-ROW('Результаты 2'!$A$2:$Z$2) -> 32 | B34: 39 | C34: НДПИ | E34: =SUM('Результаты 2'!$F34:$Z34) ->  | F34: =Результаты_1!F118 -> 0 | G34: =Результаты_1!G118 -> 0 | H34: =Результаты_1!H118 -> 0 | I34: =Результаты_1!I118 -> 0 | J34: =Результаты_1!J118 -> 0 | K34: =Результаты_1!K118 -> 0 | L34: =Результаты_1!L118 -> 0 | M34: =Результаты_1!M118 -> 0 | N34: =Результаты_1!N118 -> 0 | O34: =Результаты_1!O118 -> 0 | P34: =Результаты_1!P118 -> 0 | Q34: =Результаты_1!AA118 -> 0 | R34: =Результаты_1!AE118 -> 0 | S34: =Результаты_1!#REF! ->  | T34: =Результаты_1!AF118 -> 0 | U34: =Результаты_1!AH118 -> 0 | V34: =Результаты_1!AI118 -> 0 | W34: =Результаты_1!AJ118 -> 0 | X34: =Результаты_1!AK118 -> 0 | Y34: =Результаты_1!AL118 -> 0
A35: =ROW()-ROW('Результаты 2'!$A$2:$Z$2) -> 33 | B35: 40 | C35: Прочие | E35: =SUM('Результаты 2'!$F35:$Z35) ->  | F35: =Результаты_1!F119 -> 0 | G35: =Результаты_1!G119 -> 0 | H35: =Результаты_1!H119 -> 0 | I35: =Результаты_1!I119 -> 0 | J35: =Результаты_1!J119 -> 0 | K35: =Результаты_1!K119 -> 0 | L35: =Результаты_1!L119 -> 0 | M35: =Результаты_1!M119 -> 0 | N35: =Результаты_1!N119 -> 0 | O35: =Результаты_1!O119 -> 0 | P35: =Результаты_1!P119 -> 0 | Q35: =Результаты_1!AA119 -> 0 | R35: =Результаты_1!AE119 -> 0 | S35: =Результаты_1!#REF! ->  | T35: =Результаты_1!AF119 -> 0 | U35: =Результаты_1!AH119 -> 0 | V35: =Результаты_1!AI119 -> 0 | W35: =Результаты_1!AJ119 -> 0 | X35: =Результаты_1!AK119 -> 0 | Y35: =Результаты_1!AL119 -> 0
A36: =ROW()-ROW('Результаты 2'!$A$2:$Z$2) -> 34 | B36: 41 | C36: Местный бюджет (справочно) | E36: =SUM('Результаты 2'!$F36:$Z36) -> 12 | F36: =Результаты_1!F124 -> 0 | G36: =Результаты_1!G124 -> 0 | H36: =Результаты_1!H124 -> 0 | I36: =Результаты_1!I124 -> 0 | J36: =Результаты_1!J124 -> 0 | K36: =Результаты_1!K124 -> 0 | L36: =Результаты_1!L124 -> 0 | M36: =Результаты_1!M124 -> 0 | N36: =Результаты_1!N124 -> 0 | O36: =Результаты_1!O124 -> 0 | P36: =Результаты_1!P124 -> 0 | Q36: =Результаты_1!Q124 -> 0 | R36: =Результаты_1!R124 -> 0 | S36: =Результаты_1!S124 -> 0 | T36: =Результаты_1!T124 -> 0 | U36: =Результаты_1!U124 -> 0 | V36: =Результаты_1!V124 -> 0 | W36: =Результаты_1!W124 -> 0 | X36: =Результаты_1!AA124 -> 4 | Y36: =Результаты_1!AE124 -> 8
A37: =ROW()-ROW('Результаты 2'!$A$2:$Z$2) -> 35 | B37: 42 | C37: Налоговые поступления с мерами | D37: Налоговые поступления, рассчитанные с учётом мер гос. поддержки | E37: =SUM('Результаты 2'!$F37:$Z37) -> 0 | F37: =SUBTOTAL(9,F38:F50) -> 0 | G37: 0 | H37: 0 | I37: 0 | J37: 0 | K37: 0 | L37: 0 | M37: 0 | N37: 0 | O37: 0 | P37: 0 | Q37: 0 | R37: 0 | S37: =SUBTOTAL(9,S38:S50) -> 0 | T37: 0 | U37: 0 | V37: 0 | W37: 0 | X37: 0 | Y37: 0 | Z37: 0
A38: =ROW()-ROW('Результаты 2'!$A$2:$Z$2) -> 36 | B38: 43 | C38: Федеральный бюджет | E38: =SUM('Результаты 2'!$F38:$Z38) -> 0 | F38: =SUBTOTAL(9,F39:F43) -> 0 | G38: =SUBTOTAL(9,G39:G43) -> 0 | H38: 0 | I38: 0 | J38: 0 | K38: 0 | L38: 0 | M38: 0 | N38: 0 | O38: 0 | P38: 0 | Q38: 0 | R38: 0 | S38: 0 | T38: 0 | U38: 0 | V38: 0 | W38: 0 | X38: 0 | Y38: 0 | Z38: 0
A39: =ROW()-ROW('Результаты 2'!$A$2:$Z$2) -> 37 | B39: 44 | C39: НДС | E39: =SUM('Результаты 2'!$F39:$Z39) -> 0
A40: =ROW()-ROW('Результаты 2'!$A$2:$Z$2) -> 38 | B40: 45 | C40: Акцизы | E40: =SUM('Результаты 2'!$F40:$Z40) -> 0
A41: =ROW()-ROW('Результаты 2'!$A$2:$Z$2) -> 39 | B41: 46 | C41: Налог на прибыль | E41: =SUM('Результаты 2'!$F41:$Z41) -> 0
A42: =ROW()-ROW('Результаты 2'!$A$2:$Z$2) -> 40 | B42: 47 | C42: НДПИ | E42: =SUM('Результаты 2'!$F42:$Z42) -> 0
A43: =ROW()-ROW('Результаты 2'!$A$2:$Z$2) -> 41 | B43: 48 | C43: Прочие | E43: =SUM('Результаты 2'!$F43:$Z43) -> 0
A44: =ROW()-ROW('Результаты 2'!$A$2:$Z$2) -> 42 | B44: 49 | C44: Региональный бюджет | E44: =SUM('Результаты 2'!$F44:$Z44) -> 0 | F44: =SUBTOTAL(9,F45:F49) -> 0 | G44: 0 | H44: 0 | I44: 0 | J44: 0 | K44: 0 | L44: 0 | M44: 0 | N44: 0 | O44: 0 | P44: 0 | Q44: 0 | R44: 0 | S44: 0 | T44: 0 | U44: 0 | V44: 0 | W44: 0 | X44: 0 | Y44: 0 | Z44: 0
A45: =ROW()-ROW('Результаты 2'!$A$2:$Z$2) -> 43 | B45: 50 | C45: Налог на имущество организаций | E45: =SUM('Результаты 2'!$F45:$Z45) -> 0
A46: =ROW()-ROW('Результаты 2'!$A$2:$Z$2) -> 44 | B46: 52 | C46: Налог на прибыль | E46: =SUM('Результаты 2'!$F46:$Z46) -> 0
A47: =ROW()-ROW('Результаты 2'!$A$2:$Z$2) -> 45 | B47: 53 | C47: НДФЛ | E47: =SUM('Результаты 2'!$F47:$Z47) -> 0
A48: =ROW()-ROW('Результаты 2'!$A$2:$Z$2) -> 46 | B48: 54 | C48: НДПИ | E48: =SUM('Результаты 2'!$F48:$Z48) -> 0
A49: =ROW()-ROW('Результаты 2'!$A$2:$Z$2) -> 47 | B49: 55 | C49: Прочие | E49: =SUM('Результаты 2'!$F49:$Z49) -> 0
A50: =ROW()-ROW('Результаты 2'!$A$2:$Z$2) -> 48 | B50: 56 | C50: Местный бюджет (справочно) | E50: =SUM('Результаты 2'!$F50:$Z50) -> 0
A51: =ROW()-ROW('Результаты 2'!$A$2:$Z$2) -> 49 | B51: 57 | C51: Разница налоговых поступлений | E51: 0 | F51: 0 | G51: 0 | H51: 0 | I51: 0 | J51: 0 | K51: 0 | L51: 0 | M51: 0 | N51: 0 | O51: 0 | P51: 0 | Q51: 0 | R51: 0 | S51: 0 | T51: 0 | U51: 0 | V51: 0 | W51: 0 | X51: 0 | Y51: 0 | Z51: 0
A52: =ROW()-ROW('Результаты 2'!$A$2:$Z$2) -> 50 | B52: 58 | C52: Расходная часть бюджета | D52: Сумма всех налоговых и неналоговых мер гос. поддержки и выпадающих налогов уплачиваемых в рамках проекта | E52: 0 | F52: 0 | G52: 0 | H52: 0 | I52: 0 | J52: 0 | K52: 0 | L52: 0 | M52: 0 | N52: 0 | O52: 0 | P52: 0 | Q52: 0 | R52: 0 | S52: 0 | T52: 0 | U52: 0 | V52: 0 | W52: 0 | X52: 0 | Y52: 0 | Z52: 0
A53: =ROW()-ROW('Результаты 2'!$A$2:$Z$2) -> 51 | B53: 59 | C53: Чистый бюджетный эффект | E53: 0 | F53: 0 | G53: 0 | H53: 0 | I53: 0 | J53: 0 | K53: 0 | L53: 0 | M53: 0 | N53: 0 | O53: 0 | P53: 0 | Q53: 0 | R53: 0 | S53: 0 | T53: 0 | U53: 0 | V53: 0 | W53: 0 | X53: 0 | Y53: 0 | Z53: 0

Sheet Основная информация (hidden)
B3: «Строительство завода по производству минеральных удобрений на базе Федерального казенного предприятия «Горный» в поселке Горный, Краснопартизанского района Саратовской области»
C6: Общая информация о проекте
C8: ФОИВ-инициатор | D8: Минпромторг России
C9: ФОИВы-участники | D9: Минэкономразвития России
C10: (может быть несколько) | D10: Минфин России
D15: Субъект | H15: Населённый пункт
C16: Место реализации проекта | D16: Саратовская область | H16: пос. Горный, Краснопартизанский район
C17: (может быть несколько)
C22: Тип проекта | D22: Создание нового предприятия/производства (или объекта).
C23: Форма реализации проекта | D23: Создание совместного предприятия (наличие стратегического и/или финансового партнера).
C24: Краткое описание сути проекта | D24: Компания ООО "НПП "Платекс", совместно с ООО "СПК" Горный" (проектная компания, созданная в рамках реализации дорожной карты, принятой 15 апреля 2016 года на совещании в Минпромторге России, 100%-ая дочка ООО "НПП "Платекс") реализует инвестиционный проект "Строительство завода по производству минеральных удобрений на базе имущественного комплекса ФКП "Горный"(далее – Проект). Реализация проекта основана на необходимости вовлечения в хозяйственный оборот имущественного комплекса бывшего объекта по уничтожению химического оружия "Горный", согласно поручению Президента Российской Федерации от 27 июля 2012 года № Пр-1922, и во исполнение Указа Президента Российской Федерации от 7 мая 2018 года № 204 "О национальных целях и стратегических задачах развития Российской Федерации на период до 2024 года". Создаваемый завод по производству минеральных удобрений (далее – ЗМУ) будет обладать следующими производственными мощностями: •производство аммиака 2350 тонн в сутки; •производство карбамида 2800 тонн в сутки; •производство аммиачной селитры 1792 тонн в сутки; •производство КАС-32 2000 тонн в сутки; Основные финансовые показатели Проекта: •Общая стоимость проекта – 91 951,20 млн. рублей; •Оборот – 29 381,39 млн. руб; •Прибыль после Н/О - 19 103,49 млн. рублей;
C25: Соответствие проекта целям Указа Президента РФ от 7 мая 2018 г. № 204 | D25: Международная кооперация и экспорт
C26: Информация о степени проработки проекта | D26: 7 октября 2016 года между Минпромторгом России, Правительством Саратовской области и ООО "НПП "Платекс подписано Соглашение о сотрудничестве по подготовке и реализации проекта "Строительство завода по производству минеральных удобрений на базе имущественного комплекса ФКП "Горный" (поселок Горный, Краснопартизанский район, Саратовская область)". 20 декабря 2016 года в ЗАТО Михайловский Саратовской области (создано на основании Указа Президента Российской Федерации от 13 ноября 2003 года №1347 в целях создания надежной защитной зоны для безопасного функционирования объекта по уничтожению запасов отравляющих веществ, обеспечения требуемого режима его работы и экологической безопасности) проведены Общественные слушания на тему "Строительство завода минеральных удобрений на базе имущественного комплекса ФКП "Горный", его влияние на социально - экономическое положение территорий и окружающую среду". Проект получил единогласную поддержку. 27 февраля 2017 на международном экономическом форуме в Сочи подписано Соглашение о намерениях между Правительством Саратовской области, в лице Губернатора Саратовской области В.В. Радаева, и ООО "СПК "Горный" о реализации инвестиционного проекта "Строительство завода по производству минеральных удобрений на базе имущественного комплекса ФКП "Горный" (поселок Горный, Краснопартизанский район, Саратовская область)". По запросу Минпромторга России от Минэнерго России получено письмо о возможности выделения лимитов газа в объеме 1 млрд. куб. метров в год для реализации Проекта. От ПАО "Газпром" получено письмо о возможности поставок газа в объеме 1 млрд куб. метров в год для реализации Проекта. 7 августа 2018 года: ООО "Газпром трансгаз Саратов" подтвердило техническую возможность подачи газа в объеме 1 млрд. м3 в год по МГ "Мокроус-Самара-Тольятти" до границ зоны ответственности ПАО "Газпром" – ФКП "Горный" Генеральным инвестором строительства ЗМУ выступит одна из крупнейших профильных китайских компаний - Wuhuan Engineering. 29 января 2018 года между ООО "НПП" Платекс", ООО "СПК" Горный" и Wuhuan Engineering была подписана дорожная карта реализации инвестиционного проекта "Строительство завода по производству минеральных удобрений на базе имущественного комплекса ФКП "Горный" в поселке Горный Краснопартизанского района Саратовской области". 06 марта 2018 года Филиал ОАО "РЖД" Приволжская железная дорога подтвердил возможность перевозки минеральных удобрений железнодорожным транспортом в объеме ~ 1.6 млн. тонн, начиная с 2022 г. 12 марта 2018 года ПАО "Новороссийский морской торговый порт" выразил заинтересованность в перевалке минеральных удобрений в запрашиваемых объемах. 15 марта 2018 года ГК "Азово-Донское пароходство" выразило заинтересованность в перевозке минеральных удобрений речным транспортом. 26 апреля 2018 года ООО "НПП "Платекс" получил от Финансового университета при Правительстве РФ заключение Специалистов по Проекту, согласно которому расчёты в бизнес-плане и экономической модели сделаны верно, а реализация Проекта не окажет негативное влияние на внутренний и внешний рынок минеральных удобрений. 15 августа 2018 года Правительство Саратовской области в лице Губернатора В.В. Радаева, Wuhuan Engineering в лице главы Представительства в России Лио Чанг и ООО "СПК "Горный" в лице Генерального директора Е.Н. Ваулина подписали соглашение о сотрудничестве по реализации Проекта и дорожную карту. 21 сентября 2018 года в г. Куньмин, Китай, Под председательством Министров Промышленности России и Китая состоялось третье заседание Подкомиссии по сотрудничеству в области промышленности Российско-Китайской комиссии по подготовке регулярных встреч глав Правительств, в ходе которого стороны приветствовали реализацию проекта ООО "СПК "Горный" с китайской компанией Wuhuan Engineering, выступающей в качестве генерального подрядчика при реализации инвестиционного проекта по строительству завода по производству минеральных удобрений в Саратовской области. В сентябре 2018 года, согласно протоколу совещания №13-1262 от 05 июля 2018 г. под председательство заместителя директора Департамента химико-технологического, лесопромышленного комплекса и биоинженерных технологий М.В. Корольковым, ООО "НПП "Платекс" провел работы по межеванию земельного участка ФКП "Горный" с привлечением уполномоченной организации. 23 ноября 2018 года Статс-секретарь Заместитель Министра Минпромторга России В.Л. Евтухов обратился в Росимущество (письмо №ЕВ-76642/13 от 23.11.2018) с просьбой о содействие в проведение Росимуществом экспертизы и согласовании схемы земельного участка в целях своевременной реализации Проекта строительства завода по производству минеральных удобрений. 23 ноября 2018 года Статс-секретарь Заместитель Министра Минпромторга России В.Л. Евтухов обратился в ПАО "Газпром" (письмо №ЕВ-76623/13 от 23.11.2018 ) с просьбой о содействие в вопросе выдачи Технических условий на газ в целях своевременной реализации Проекта строительства завода по производству минеральных удобрений. 31 января 2019 года выделенный участок под строительство завода по производству минеральных удобрений площадью 1 649 918 кв. м и части земельного участка площадью 7 380 кв. м. был поставлен на кадастровый учет. Покупателями всей выпускаемой ЗМУ продукции выступит компания Ameropa AG(Швейцария) (соглашение о намерениях от 20.12.2018г.), с которой в 2 квартале 2019 года будет подписан offtake договор на весь объем продукции.
C27: Наличие необходимых ресурсов для реализации проекта: | D27: Проект предполагет использования ресурсов проведенных к бывшему объекту по уничтожению химического оружия "Горный". Ресурсная база полностью проработано и удовлетворяет требованиям к подобному производству (некоторые модщности надо реконструировать ) По запросу Минпромторга России от Минэнерго России получено письмо о возможности выделения лимитов газа в объеме 1 млрд. куб. метров в год для реализации Проекта. От ПАО "Газпром" получено письмо о возможности поставок газа в объеме 1 млрд куб. метров в год для реализации Проекта. 7 августа 2018 года: ООО "Газпром трансгаз Саратов" подтвердило техническую возможность подачи газа в объеме 1 млрд. м3 в год по МГ "Мокроус-Самара-Тольятти" до границ зоны ответственности ПАО "Газпром" – ФКП "Горный"
C28: Материально-сырьевая база для выпуска продукции | D28: Количество природного газа, потребляемого в качестве сырья и топлива объектами комплекса, составляет 1 млрд куб/м в год. Газоснабжение объектов предприятия предусмотрено стальным газопроводом - отводом диаметром 219 мм с давлением 5,5 МПа от газопровода Мокроус - Тольятти до АГРС протяженностью 4 856 м. Протяженность полиэтиленового газопровода высокого давления (давление 3,2 кгс/см2) составляет от АГРС до котельной теплового хозяйства - 9762 м, Д-225 мм. Водозаборные сооружения включают в себя насосную станцию производительностью 1800 м.куб/ч, оборудованную шестью насосами марки ЭЦВ с круглосуточным режимом работы, здания которой расположены на левом берегу р. Б. Иргиз. Подстанция "Степная" 32 МвТ
C29: Социальная инфраструктура | D29: Мост через реку Б. Иргиз, соединяющий село Березово ( Пугачевский район) и село Каменка ( Пугачевский район). Обеспечение условий для комфортного проживания сотрудников на територии ЗАТО - поселок Михайловский (возможно после отмены ЗАТО создание Моногорода)
C30: Базовые условия
C31: (может быть несколько)
C39: Направленность проекта и его отраслевая принадлежность
D41: ОКВЭД | F41: Наименование
C42: Отрасль реализации проекта | D42: 20.15.3 | F42: Производство азотных минеральных или химических удобрений
C43: (может быть несколько) | F43: ---
F44: ---
F45: ---
F46: ---
C47: Основные виды продукции (услуг) по проекту | D47: Карбамид 2800 тонн в сутки;; КАС-32 2000 тонн в сутки;
C48: Ориентирован ли проект на импортозамещение | D48: Да
C49: Доля продукции на экспорт | D49: 1
C50: Рыночные предпосылки реализации проекта: | D50: Наибольший вклад в оборот химической промышленности вносит производство минеральных удобрений. Мировой рынок минеральных удобрений в последние десятилетия развивался высокими темпами, чему в частности способствовал рост сельского хозяйства В результате менее чем за 30 лет его объем увеличился практически в 5 раз и достигает более 100 млрд долларов в 2017 году при стабильных средних многолетних значениях темпов прироста порядка 3% в год. Рост численности мирового населения ведет к увеличению спроса на основные продукты питания при одновременном сокращении ресурса свободных мировых посевных площадей в расчете на человека, что обуславливает необходимость интенсификации сельского хозяйства, разработки и внедрения новых технологий. В последние годы сложные климатические условия негативно сказались на урожае сельхозкультур в большинстве ведущих стран производителей и привели к снижению мировых запасов зерновых, что в свою очередь привело к росту спроса на минеральные удобрения. Увеличение доходов на душу населения в странах с развивающейся экономикой ведет к улучшению рациона питания. Происходит рост потребления продукции животноводства, в частности, мяса и молочных продуктов, что требует производства дополнительных объемов продукции растениеводства, и, как следствие, ведет к увеличению спроса на минеральные удобрения. Повышение спроса на биотопливо (биоэтанол, биодизель) соответственно влечет за собой дополнительный спрос на сельхозпродукцию технического назначения и на удобрения. Россия обладает уникальной сырьевой базой, позволяющей выпускать весь спектр минеральных удобрений, российские предприятия входят в число ключевых игроков по всем сегментам: азотному, фосфорному и калийному.
C51: Рынок сбыта | D51: Страны Европейского союза, Страны Латинской Америки, Индия, Китай.
C52: Основные потребители продукции / услуг, основные драйверы роста спроса | D52: По прогнозу Международной ассоциации производителей минеральных удобрений (IFA), наибольший прирост в мировом спросе на удобрения придется на страны Восточной и Южной Азии и Латинской Америки. На страны Восточной Азии и Латинской Америки придётся в ближайшие пять лет и основной прирост спроса в сегменте азотных и фосфорных удобрений.В долгосрочной преспективи значительно может вырасти спрос на азотные удобрения в странах Африки. Стабильным покупателем выступают страны Европейского союза.
C53: Основные игроки отрасли, конкурентные преимущества проекта на рынке | D53: Основные игроки отрасли: Еврохим,Уралхим, Метафракс, Тольятти, Аммоний, КуйбышевАзот, Газпром нефтехим Салават, Акрон. Основные конкуретные преимущества проекта: Строительство с нуля комплексного высокооинетегрированого завода с использованием наилучших доступных технологий, такой завод будет значительно выигрывать по себестоимости продукции. Учитывая экспортную ориентацию завода все решения и используемые технологии обсуждаются с конечным покупателем продукции Ameropa AG что позволяет создать наиболее рентабельное и эффективное производство. Основные конкуретные преимущетсва площадки: 1.Решённый вопрос с экологической безопасностью на площадке, выбранной под реализацию проекта. 2.Выгодное размещение площадки выбранной под реализацию проекта с точки зрения логистики (железная дорога, речные порты, автомобильная дорога) 3.Наличие квалифицированного персонала. 4.Наличие необходимой ресурсной базы 5.Поддержка регианальной власти 6.Поддержка населением (20 декабря 2016 года в ЗАТО Михайловский Саратовской области (создано на основании Указа Президента Российской Федерации от 13 ноября 2003 года №1347 в целях создания надежной защитной зоны для безопасного функционирования объекта по уничтожению запасов отравляющих веществ, обеспечения требуемого режима его работы и экологической безопасности) проведены Общественные слушания на тему "Строительство завода минеральных удобрений на базе имущественного комплекса ФКП "Горный", его влияние на социально - экономическое положение территорий и окружающую среду". Проект получил единогласную поддержку. )
C57: Информация об участниках проекта
D59: Общие сведения об Инициаторе проекта | L59: Общие сведения о компании, реализующей проект (если не совпадает с Инициатором проекта)
C61: Наименование | D61: ООО "НПП"Платекс" | L61: ООО "СПК" Горный"
C62: Место государственной регистрации (юридический адрес) | D62: 115230, город Москва, Электролитный проезд, 1 корп.3 | L62: 413540, Саратовская область, поселок Михайловский, улица Возрождение, дом 16, помещение 44, этаж 2
C63: Адрес фактического местонахождения лица | D63: 115230, город Москва, Электролитный проезд, 1 корп.3 | L63: 413540, Саратовская область, поселок Михайловский, улица Возрождение, дом 16, помещение 44, этаж 2
C64: Основные виды деятельности юридического лица | D64: 38.1 Сбор отходов | L64: 71.12 Деятельность в области инженерных изысканий, инженерно-технического проектирования, управления проектами строительства, выполнения строительного контроля и авторского надзора, предоставление технических консультаций в этих областях
C65: Срок деятельности юридического лица (лет) | D65: 12 | L65: 2
C66: Название материнской компании (основной бенифициар) | D66: Ваулин Николай Евгеньевич | L66: ООО "НПП"Платекс"
C67: Данные о наличии неурегулированной задолженности по налогам и иным обязательным платежам в бюджетные и внебюджетные фонды | D67: нет | L67: нет
C68: Сотрудник организации, ответственный за заполнение заявки | L68: Ваулин Евгений Николаевич
C69: Должность | L69: Генеральный директор
C70: Номер телефона | L70: 89032830908
C71: Адрес электронной почты | L71: platex@bk.ru
D73: Наименование | H73: Форма, условия и объемы участия в проекте
C74: Наличие потенциальных инвесторов/соинвесторов (если применимо) | D74: Wuhuan Engineering | H74: Вхождение в уставной капитал на 15% от стоимости EPC после завершения проектных работ + Привлечение кредита на 85%
C75: (может быть несколько)
C78: Наличие опыта у менеджеров проекта по реализации аналогичных проектов | D78: Компания Платекс осуществляет полный цикл научно-исследовательских и опытно-конструкторских проектов, с целью создания рентабельных высокоэффективных производств, разработки, продвижения и внедрения новых современных химических технологий производящих высокотехнологичную продукцию. В состав компании входят: - специалисты в области промышленной технологии специализирующиеся на крупномасштабных химических производствах; - специалисты по ресурсосберегающим и энергосберегающим технологиям, ориентированные на использование как собственного, так и имеющегося зарубежного научно-технического и производственно-технологического потенциала (привлечение прямых иностранных инвестиций, закупки лицензий на высокоэффективные новейшие технологии и т.д.); - эксперты промышленной и экологической безопасности Основу компании составляют ученые со степенью кандидата и доктора наук, являющиеся активно действующими исследователями. Область деятельности компании: 1.Участие в реализации Федеральной Целевой Программы "Уничтожение запасов химического оружия в Российской Федерации" 2.Перепрофилирование объектов химической промышленности;
C85: Основные характеристики проекта
C87: Общая стоимость проекта | E87: =Результаты_1!K16 -> 87314102.4 | F87: тыс. руб.
C88: за счет бюджетных средств | F88: тыс. руб. | G88: =E88/E87 -> 0 | H88: %
C89: за счет внебюджетных средств | E89: =E87 -> 87314102.4 | F89: тыс. руб. | G89: =E89/E87 -> 1 | H89: %
C91: Объем и доля инвестиций в основной капитал | E91: =E89*80% -> 69851281.92 | F91: тыс. руб.
G93: Условия предоставления (%, период) | J93: Наименование, пояснения | M93: Уровень проработки
C94: Собственные средства участников проекта, собственников | E94: ='Капитальные затраты'!D18+'Капитальные затраты'!D19+'Капитальные затраты'!D20+'Капитальные затраты'!D21 -> 586027.2 | F94: тыс. руб. | J94: ООО "НПП" Платекс"
C95: взносы в уставной капитал | E95: =E94 -> 586027.2
C96: предоставление акционерного займа | E96: 0
C97: Привлечение соинвесторов (не кредитной организации) | E97: =E87*20% -> 17462820.48 | F97: тыс. руб. | G97: Взнос в уставной капитал | J97: Wuhuan Engineering | M97: 15 августа 2018 года Правительство Саратовской области в лице Губернатора В.В. Радаева, Wuhuan Engineering в лице главы Представительства в России Лио Чанг и ООО "СПК "Горный" в лице Генерального директора Е.Н. Ваулина подписали соглашение о сотрудничестве по реализации Проекта и дорожную карту.
C98: Привлечение кредитов | E98: =E87*80% -> 69851281.92 | F98: тыс. руб. | G98: Гибкий график, 5% годовых, после запуска завода | J98: Китайский Банк Развития (также проработаны варианты с JBIC) | M98: Нет
C99: Выпуск облигаций | F99: тыс. руб.
C100: Доход от текущей деятельности, направленный на реализацию проекта | F100: тыс. руб.
C101: Займы юридического лица, входящего в группу компаний | F101: тыс. руб.
C102: Привлечение иных средств | F102: тыс. руб.
C104: Рабочие места
C105: Старые рабочие места | F105: мест.
C106: Новые рабочие места | E106: 850 | F106: мест.
C107: в т.ч. завезенные | F107: мест.
C108: в т.ч местные | E108: 850 | F108: мест.
C109: Рабочие места на период строительства | E109: 2000 | F109: мест.
C116: Необходимые меры поддержки
G118: Период предоставления (годы)
C119: Компенсация части | G119: 1 | H119: 2 | I119: 3 | J119: 4 | K119: 5 | L119: 6
C120: затрат на создание и (или) развитие инфрастурктуры | E120: =CHOOSE(W122,E121,E122) -> 0 | F120: млн руб. | G120: =CHOOSE(W122,G121,G122) -> 0 | H120: =CHOOSE(W122,H121,H122) -> 0 | I120: =CHOOSE(W122,I121,I122) -> 0 | J120: =CHOOSE(W122,J121,J122) -> 0 | K120: =CHOOSE(W122,K121,K122) -> 0 | L120: =CHOOSE(W122,L121,L122) -> 0
E121: =SUM(G121:L121) -> 0 | G121: 0 | H121: 0 | I121: 0 | J121: 0 | K121: 0 | L121: 0 | N121: Дополнительные нефинансовые меры поддержки: | W121: Компенсация затрат
E122: =SUM(G122:L122) -> 50 | G122: 10 | H122: 10 | I122: 10 | J122: 10 | K122: 10 | L122: 0 | V122: Нет | W122: 1
V123: Да
C124: в рамках индустриальных парков, технопарков, ОЭЗ | E124: Нет
C125: в рамках соглашений о защите и поощрении капиталовложений (СЗПК) | E125: Нет
C126: в рамках концессионных соглашений | E126: Нет
C127: капитальный грант на создание (реконструкцию) объектов концессионных соглашений | E127: Нет
C128: субсидии на компенсацию затрат по созданию транспортной инфраструктуры | E128: Нет
C129: капитальных и операционных затрат на реализацию проекта | F129: млн руб.
C130: затрат на создание объектов интеллектуальной собственности (НИР, ОКР, патенты и т.д.) | F130: млн руб.
C131: затрат на уплату налогов | F131: млн руб.
C133: Участие государства в объекте собственности / создании инфраструктурных условий | F133: млн руб.
C135: Создание сопутствующей транспортной инфраструктуры за счет государства | E135: Нет
C137: Компенсация расходов на строительство транспортной, социальной и инженерной инфраструктуры в рамках реализации проектов комплексной застройки территорий (строительства жилья) в границах населенных пунктов | E137: Нет
N138: Пояснения по запрашиваемым мерам поддержки:
C139: Строительство автомобильных дорог общего пользования к объектам производства и переработки | E139: Нет
C141: Иное (указать)
C143: Субсидирование банковской ставки | E143: =CHOOSE(W145,E144,E145) -> 0 | F143: п.п.
E144: 0 | W144: Субсидирование
E145: 0.01 | V145: Нет | W145: 1
G146: Период предоставления (годы) | V146: Да
C147: Налоговые льготы: | G147: 2019 | H147: =G147+1 -> 2020 | I147: =H147+1 -> 2021 | J147: 2022 | K147: 2023 | L147: 2024 | M147: 2025 | N147: 2026 | O147: 2027 | P147: 2028 | Q147: 2029
C148: Налог на прибыль | E148: =CHOOSE(W150,E149,E150) -> 0.2 | G148: =CHOOSE($W$150,G149,G150) -> 0.2 | H148: =CHOOSE($W$150,H149,H150) -> 0.2 | I148: 0.2 | J148: 0.2 | K148: 0.2 | L148: 0.2 | M148: 0.2 | N148: 0.2 | O148: 0.2 | P148: 0.2 | Q148: 0.2 | W148: Налоговые льготы
E149: 0.2 | G149: 0.2 | H149: 0.2 | I149: 0.2 | J149: 0.2 | K149: 0.2 | L149: 0.2 | M149: 0.2 | N149: 0.2 | O149: 0.2 | P149: 0.2 | Q149: 0.2 | W149: Налог на прибыль
E150: 0.15 | G150: 0.15 | H150: 0.15 | I150: 0.15 | J150: 0.15 | K150: 0.15 | L150: 0.15 | M150: 0.15 | N150: 0.15 | O150: 0.15 | P150: 0.15 | Q150: 0.15 | V150: Нет | W150: 1
V151: Да
C152: НДС | E152: =CHOOSE(W154,E153,E154) -> 0.2 | G152: =CHOOSE($W$154,G153,G154) -> 0.2 | H152: =CHOOSE($W$154,H153,H154) -> 0.2 | I152: 0.2 | J152: 0.2 | K152: 0.2 | L152: 0.2 | M152: 0.2 | N152: 0.2 | O152: 0.2 | P152: 0.2 | Q152: 0.2
E153: 0.2 | G153: 0.2 | H153: 0.2 | I153: 0.2 | J153: 0.2 | K153: 0.2 | L153: 0.2 | M153: 0.2 | N153: 0.2 | O153: 0.2 | P153: 0.2 | Q153: 0.2 | W153: НДС
V154: Нет | W154: 1
V155: Да
C156: Налог на имущество | E156: =CHOOSE(W158,E157,E158) -> 2.2% | G156: =CHOOSE($W$158,G157,G158) -> 2.2% | H156: =CHOOSE($W$158,H157,H158) -> 2.2% | I156: 2.2% | J156: 2.2% | K156: 2.2% | L156: 2.2% | M156: 2.2% | N156: 2.2% | O156: 2.2% | P156: 2.2% | Q156: 2.2%
E157: 2.2% | G157: 2.2% | H157: 2.2% | I157: 2.2% | J157: 2.2% | K157: 2.2% | L157: 2.2% | M157: 2.2% | N157: 2.2% | O157: 2.2% | P157: 2.2% | Q157: 2.2% | W157: Налог на имущество
V158: Нет | W158: 1
V159: Да
C160: Налог на землю | E160: =CHOOSE(W162,E161,E162) -> 0 | G160: =CHOOSE($W$162,G161,G162) -> 0 | H160: 0 | I160: 0 | J160: 0 | K160: 0 | L160: 0 | M160: =CHOOSE($W$162,M161,M162) -> 0 | N160: =CHOOSE($W$162,N161,N162) -> 0 | O160: =CHOOSE($W$162,O161,O162) -> 0 | P160: =CHOOSE($W$162,P161,P162) -> 0 | Q160: =CHOOSE($W$162,Q161,Q162) -> 0
W161: Налог на землю
V162: Нет | W162: 1
V163: Да
C164: НДПИ | E164: =CHOOSE(W166,E165,E166) -> 0 | G164: =CHOOSE($W$166,G165,G166) -> 0 | H164: 0 | I164: 0 | J164: 0 | K164: 0 | L164: 0 | M164: =CHOOSE($W$166,M165,M166) -> 0 | N164: =CHOOSE($W$166,N165,N166) -> 0 | O164: =CHOOSE($W$166,O165,O166) -> 0 | P164: =CHOOSE($W$166,P165,P166) -> 0 | Q164: =CHOOSE($W$166,Q165,Q166) -> 0
W165: НДПИ
V166: Нет | W166: 1
V167: Да
C168: Акцизы
E169: 0 | G169: 0 | H169: 0 | I169: 0 | J169: 0 | K169: 0 | L169: 0 | M169: 0 | N169: 0 | O169: 0 | P169: 0 | Q169: 0 | W169: Иные льготы
V170: Нет | W170: 1
V171: Да
C172: Иные льготы
E173: 0 | G173: 0 | H173: 0 | I173: 0 | J173: 0 | K173: 0 | L173: 0 | M173: 0 | N173: 0 | O173: 0 | P173: 0 | Q173: 0 | W173: Иные льготы
V174: Нет | W174: 1
V175: Да
C176: Иные меры поддержки (пояснить) | F176: млн руб.
E177: 0 | F177: млн руб. | G177: 0 | H177: 0 | I177: 0 | J177: 0 | K177: 0 | L177: 0 | M177: 0 | N177: 0 | O177: 0 | P177: 0 | Q177: 0 | W177: Иные меры
F178: млн руб. | V178: Нет | W178: 1
V179: Да
C182: Дополнительная информация
C184: Иная информация по проекту, существенная с точки зрения Инициатора
C185: Для реализации проекта необходимо выполнить Проектные работы (FEED) и разработать Проектную документацию (ПД) (Объем работ: FEED – базовый проект (БП), технологическая схема, список оборудования, лицензионное соглашение, договор сервисного обслуживания, договор на обучение и аттестацию персонала; - Проектная документация (ПД) - инженерные изыскания, геодезические изыскания, адаптация базового проекта, ПД на технологическую часть и общезаводское хозяйство (ОЗХ), оценка воздействия на окружающую среду (ОВОС), главная государственная экспертиза (ГГЭ), главная государственная экологическая экспертиза (ГГЭЭ), разрешения на строительство;) Оценочная стоимость - 45 млн $ .Wuhuan Engineering готов дать кредит на FEED и ПД под гарантию. После выполнения проектных работ Wuhuan Engineering готов войти в уставной капитал на 15% от стоимости EPC после завершения проектных работ и привлечь кредит на 85%от стоимотси EPC.

Sheet Финансирование проекта (hidden)
C1: 2019 | D1: 2020 | E1: 2021 | F1: 2022 | G1: 2023 | H1: 2024
A2: Здания и сооружения | B2: тыс. $ | C2: ='Капитальные затраты'!D5 -> 0 | D2: ='Капитальные затраты'!E5 -> 16320 | E2: ='Капитальные затраты'!F5 -> 81600 | F2: ='Капитальные затраты'!G5 -> 110160 | G2: ='Капитальные затраты'!H5 -> 118320 | H2: ='Капитальные затраты'!I5 -> 0
A3: Оборудование и другие активы | B3: тыс. $ | C3: ='Капитальные затраты'!D6 -> 0 | D3: ='Капитальные затраты'!E6 -> 101760 | E3: ='Капитальные затраты'!F6 -> 257280 | F3: ='Капитальные затраты'!G6 -> 231840 | G3: ='Капитальные затраты'!H6 -> 287520 | H3: ='Капитальные затраты'!I6 -> 0
A4: Нематеральные активы | B4: тыс. $ | C4: ='Капитальные затраты'!D7 -> 0 | D4: ='Капитальные затраты'!E7 -> 0 | E4: ='Капитальные затраты'!F7 -> 0 | F4: ='Капитальные затраты'!G7 -> 0 | G4: ='Капитальные затраты'!H7 -> 0 | H4: ='Капитальные затраты'!I7 -> 0
A5: Первоначальный оборотный капитал | B5: тыс. $ | C5: ='Капитальные затраты'!D8 -> 0 | D5: ='Капитальные затраты'!E8 -> 0 | E5: ='Капитальные затраты'!F8 -> 0 | F5: ='Капитальные затраты'!G8 -> 0 | G5: ='Капитальные затраты'!H8 -> 0 | H5: ='Капитальные затраты'!I8 -> 0
A6: Проектная документация | B6: тыс. $ | C6: ='Капитальные затраты'!D9 -> 3360 | D6: ='Капитальные затраты'!E9 -> 3840 | E6: ='Капитальные затраты'!F9 -> 0 | F6: ='Капитальные затраты'!G9 -> 0 | G6: ='Капитальные затраты'!H9 -> 0 | H6: ='Капитальные затраты'!I9 -> 0
A7: FEED Аммиак | B7: тыс. $ | C7: ='Капитальные затраты'!D10 -> 3312 | D7: ='Капитальные затраты'!E10 -> 6768 | E7: ='Капитальные затраты'!F10 -> 0 | F7: ='Капитальные затраты'!G10 -> 0 | G7: ='Капитальные затраты'!H10 -> 0 | H7: ='Капитальные затраты'!I10 -> 0
A8: FEED Карбамид | B8: тыс. $ | C8: ='Капитальные затраты'!D11 -> 1400 | D8: ='Капитальные затраты'!E11 -> 3120 | E8: ='Капитальные затраты'!F11 -> 0 | F8: ='Капитальные затраты'!G11 -> 0 | G8: ='Капитальные затраты'!H11 -> 0 | H8: ='Капитальные затраты'!I11 -> 0
A9: FEED Аммиачная селитра + Азотная кислота + КАС | B9: тыс. $ | C9: ='Капитальные затраты'!D12 -> 0 | D9: ='Капитальные затраты'!E12 -> 0 | E9: ='Капитальные затраты'!F12 -> 0 | F9: ='Капитальные затраты'!G12 -> 0 | G9: ='Капитальные затраты'!H12 -> 0 | H9: ='Капитальные затраты'!I12 -> 0

Sheet Инфраструктура (hidden)
C2: Приложение
C5: Инфраструктурные ограничения реализации проекта:
C7: Вид инфраструктурного ограничения
C11: (электроснабжение, водоснабжение, водоотведение, теплоснабжение, газоснабжение, транспортная инфраструктура, сети связи)
C13: Описание инфраструктурного ограничения с указанием привязки к местности/ к земельному частку (география инфраструктурного ограничения)
C19: Существующая (фактическая) мощность и (или) пропускная способность инфраструктуры с указанием единицы измерения
C23: (на момент подачи заявки)
C25: Плановая потребность (мощность и (или ) пропускная способность) с указанием единицы измерения
C31: Подтверждение потребностей в снятии инфраструктурного ограничения
C32: (указывается источник информации : перспективная потребность в использовании создаваемых объектов инфраструктуры подтверждается разработанной проектной документацией по новому инвестиционному проекту и (или) техникоэкономическим обоснованием, разработанным проектной организацией и содержащим расчеты объемов мощностей по всем видам ресурсов инженерно-технического обеспечения, и (или) бизнес-планом, разработанным с привлечением проектной организации (на основании заключенного договора) и содержащим расчеты объемов мощностей по всем видам ресурсов инженерно-технического обеспечения
C37: Сведения о возможности (невозможности) финансирования создания (развития) необходимых объектов инфраструктуры за счет средств иницатора/инвестора (в том числе с использованием механизмов концессии и ГЧП) или средств институтов развития
C45: Сведения о земельных участках, необходимых для строительства и (или) реконструкции объектов инфраструктуры
B47: 1. | C47: Кадастровый номер земельного участка | D47: 64:18:020501:316 | H47: 9. | M47: Кадастровый номер объекта кап строительства на участке
B48: 2. | C48: Адрес (местоположение) земельного участка | D48: Саратовская область, п Михайловский | H48: 10. | M48: Правообладатель объекта капитального строительства
B49: 3. | C49: Площадь земельного участка (кв. м) | D49: 1649918 +/- 2247кв. М | H49: 11. | M49: Вид разрешенного использования объекта кап строительства
B50: 4. | C50: Собственник (правообладатель) | H50: 12. | M50: Наличие обременений (вид обременений)
B51: 5. | C51: Категория земель, вид разрешенного использования | D51: Земли промышленности,энергетики,транспорта,связи, радиовещания,телевидения, информатики,земли для обеспечения космической деятельности,земли обороны, безопасности и земли иного специального назначения | H51: 13. | M51: Наименование лица, в пользу которого установлено
B52: 6. | C52: Цель использования (создание/расширение производства/иное) | H52: 14. | M52: Сведения об участии объекта кап строительства в проекте
B53: 7. | C53: Наличие обременений/ограничений (вид обременений) | H53: 15. | I53: Перечень обосновывающих документов на земельные участки и объекты кап строительства (наименование и реквизиты)
B54: 8. | C54: Наименование лица, в пользу которого установлено обременение
C58: Сведения об объеме мощностей и составе объектов инженерной инфраструктуры по электро-, газо-, тепло- и водоснабжению, водоотведению, ливневой канализации, о требуемых сетях связи, необходимых и достаточных для реализации проекта | J58: Сведения о необходимой транспортной инфраструктуре (железнодорожной, автомобильной и пр.)
D60: Вид объектов инфраструктуры | N60: Вид объектов инфраструктуры
D62: Существующее положение по объектам инженерной инфраструктуры | N62: Существующее положение по объектам транспортной инфраструктуры
C63: Основные источники ресурса (кол-во и суммарная установленная мощность/производительность) | J63: Общая протяженность автомобильных дорог/ железнодорожных путей (общего/необщего использования)
C64: Линейные объекты (вид, протяженность, пропускная способность/мощность | D64: Вид объектов инфраструктуры | J64: Наличие транспортного сообщения площадки проекта с административными центрами , дорогами федерального значения, транспортными узлами (морские порты, речные порты, аэропорты, железнодорожные станции)
C65: Здания, строения и сооружения, входящие в инфраструктуру объекта (вид, производительность /мощность) | D65: Вид объектов инфраструктуры | J65: Эксплуатирующая организация
C66: Эксплуатирующая организация | D66: Вид объектов инфраструктуры | J66: Техническое состояние дорог и искусственных сооружений (с указанием нименования и реквизитов документов технического освидетельствования)
C67: Степень износа источника ресурса (с указанием источника данных) | D67: Вид объектов инфраструктуры
C68: Степень износа линейных объектов (с указанием источника данных) | D68: Вид объектов инфраструктуры | J68: Сведения о транспортной инфраструктуре и планах развития транспортной инфраструктуры для целей реализации проекта
J69: Наличие инфраструктурного ограничения (да/нет) | O69: нет
C70: Текущий баланс портебления ресурсов | J70: Наименование технико-экономические показатели необходимого объекта транспортной инфраструктуры
C71: Объем потребления (текущий) | E71: 0 | J71: Существующая нагрузка/объем перевозок по объектам транспортной инфраструктуры (привед. Ед/сутки; млн. тонн нетто/год;млн. тонн брутто/год)
C72: Объем потребления иными действующими промышленными предприятиями | J72: Перспективная нагрузка/объем перевозок по объектам транспортной инфраструктуры, создаваемая новым проектом (привед. Ед/сутки; млн. тонн нетто/год;млн. тонн брутто/год)
C73: Объем потребления жилым фондом, социальными объектами | J73: Наличие планов /программ развития (сведения о планах развития транспортной инфраструктуры, необходимой для реализации нового проекта
C74: Резерв мощности | J74: Выбор решения по снятию инфраструктурных ограничений
C75: Итого | J75: (указываются и описываются мероприятия по строительству и (или) реконструкции объектов инфраструктуры, снимающие инфраструктурные ограничения проекта)
C77: Сведения о планах развития коммунальной инфраструктуры, необходимой для реализации проекта | J77: Обоснование предложенного способа снятия инфраструктурных ограничений, в том числе описание проектных решений
C78: Ссылка на утвержденную схему по данному виду инфраструктуры на перспективный период (реквизиты документа) | J78: Сведения о наличии (отсутствии) положительного заключения государственной экспертизы проектной документации , достоверности определения сметной стоимости объектов инфраструктуры, а также результатов проведенных работ по проектированию, включая инженерные изыскания и технические условия подключения (технологическое присоединение)
C79: Сведения наличие существующих планов/программ развития (помимо планов проекту)
C80: Сведения об инфраструктурных ограничениях либо их отсутствии по всем видам запрашиваемой инженерной инфраструктуры | J80: Сведения о железнодорожной инфраструктуре (объектах инфраструктуры), необходимых для реализации проекта
C81: Потребность в ресурсах инженерной инфраструктуры по проекту (перспективный баланс потребления ресурсов): | J81: Сведения о наличии технических условий, согласованных с ОАО "РЖД"
C82: Период 1 | J82: Сведения об участии заявленных решений по снятию ограничений в ппрограмме (долгосрочной программе) ОАО "РЖД"
C83: Период 2 | J83: Свядения о факте подачи заявки на создание необходимой инфраструктуры с участием ОАО "РЖД" (с указанием результатам подачи заявки)
C84: Период 3 | J84: Иные сведения о взаимодействии с ОАО "РЖД" в рамках снятия инфраструктурных ограничений
C85: Период 4
C86: Период 5
C87: Период 6
C88: Период 7
C89: Период 8
C90: Период 9
C91: Период 10
C92: Наименование документа - источника информации
C93: Выбор решения по снятию инфраструктурных ограничений
C94: (указываются и описываются мероприятия по строительству и (или) реконструкции объектов инфраструктуры, снимающие инфраструктурные ограничения проекта по каждому виду ресурса)
C95: Обоснование предложенного способа снятия инфраструктурных ограничений, в том числе описание проектных решений
C96: Сведения о наличии (отсутствии) положительного заключения государственной экспертизы проектной документации , достоверности определения сметной стоимости объектов инфраструктуры, а также результатов проведенных работ по проектированию, включая инженерные изыскания и технические условия подключения (технологическое присоединение)

Sheet Инфраструктура (формат РЖД) (hidden)
C2: Приложение
C5: Перечень документов по новым инфраструктурным проектам
C7: Описание существующей ситуации на участках железной дороги
C13: Схематический план, отражающий текущее путевое развитие железнодорожного пути необщего пользования заявителя (если есть в наличии)
C19: Возможные формы гарантии обеспечения заявленной грузовой базы, обосновывающие материалы
G25: 2019 | H25: 2020 | I25: 2021 | J25: 2022 | K25: 2023 | L25: 2024 | M25: 2025 | N25: 2026 | O25: 2027 | P25: 2028 | Q25: 2029 | R25: 2030
C26: Информация о планируемом объеме перевозок грузов железнодорожным транспортом | E26: ед.
G28: 2019 | H28: 2020 | I28: 2021 | J28: 2022 | K28: 2023 | L28: 2024 | M28: 2025 | N28: 2026 | O28: 2027 | P28: 2028 | Q28: 2029 | R28: 2030
C29: Прогнозный объем грузовой базы, перевозимой железнодорожным транспортом | E29: ед.
C30: завоз сырья
C31: вывоз готовой продукции по видам грузов, корреспонденциям перевозов (от точки зарождения до точки погашения)
C32: виды грузов

Sheet Debt_Sensitivity (hidden)
C1: Анализ чувствительности остатка задолженности перед Банком к ключевым факторам
C4: Остаток задолженности по кредитам ВЭБ на конец периода | E4: 2019 | F4: 2020 | G4: 2021 | H4: 2022 | I4: 2023 | J4: 2024 | K4: 2025 | L4: 2026 | M4: 2027 | N4: 2028 | O4: 2029 | P4: 2030 | Q4: 2031 | R4: 2032 | S4: 2033 | T4: 2034 | U4: 2035 | V4: 2036 | W4: 2037 | X4: 2038 | Y4: 2039 | Z4: 2040 | AA4: 2041 | AB4: 2042 | AC4: 2043 | AD4: 2044
